Workbook

Sheet Tracker (hidden)
B1: PROJECT | C1: PROJET MANAGER | D1: EXT | E1: CHARGE CODE | G1: 35% BCOE SUSPENSE
F2: Coodinator | G2: RE/PE | I2: Arch | K2: Civil | M2: Elec | O2: Mech
G3: Comments Completed Date | H3: Comments Closed Date | I3: Comments Completed Date | J3: Comments Closed Date | K3: Comments Completed Date | L3: Comments Closed Date | M3: Comments Completed Date | N3: Comments Closed Date | O3: Comments Completed Date | P3: Comments Closed Date

Sheet BCOES Request
B2: Construction Quality Manager Course Request
B4: PART I. PARTICIPANT INFORMATION :
B6: 1. Last Name: | P6: First Name
B11: 2. Company: | V11: 3. Title: | AJ11: 4. Professional License:
B16: 5. Certified Previously: | R16: 6. Currently QCM on another project: | AK16: 7. Site Safety Qualification:
C17: Yes; Date: | N17: No | S17: Yes; Date Complete: | AG17: No
B21: 8. Years Experience as QC Manager: | O21: 9. Other Relevent Positions/#Yrs: | AF21: 10. Email:
B26: PART II. PROJECT INFORMATION:
B28: 10. Project & Government POC | Q28: 11. Session: | AI28: 12. Date of Request:
S29: 1 Fort Liberty | Z29: 2 Fort Eisenhower
S30: 3 Fort Moore | Z30: 4 Robins AFB | AM30: (date form is completed)
B32: 13. Years on Similar Project: | P32: 14. Attendance: | AD32: 15. Accomodations:
S33: In Person | Y33: *Virtual
E36: * May not be available
C37: All Applicants must be approved to take the course, by meeting or exceeding the qualifications set within UFGS 01 45 00. USACE SAS reserves the right to reject or approve applicats based on the provided information and/or the testimony of USACE staff.
D40: Hover over blanks for notes to applicant
D41: Submit applications in excel format
BE56: Column1 | BF56: Amy Vaughn
BE57: Moody_AFB | BF57: Eddie Culpepper | BH57: ="A "&AB33&" BCOES review has been requested for the "&J12&", "&"PN "&AG12&"." -> A BCOES review has been requested for the , PN .
BE58: Fort_Bragg | BF58: Marcia Meekins | BH58: ="Request Date: "&AP29 -> Request Date:
BE59: Fort_Benning | BF59: Eddie Culpepper
BE60: Fort_Bragg | BF60: Marcia Meekins
BE61: Robins_AFB | BF61: Richard Thomas | BH61: ="Suspense Date: "&#REF! -> 
BE62: Fort_Gordon | BF62: Stephen Monjoy | BH62: ="Duration: "&AJ33&" Calendar Days" -> Duration: Calendar Days
BE63: Fort_Stewart | BF63: Karl VanStavorenn | BH63: ="PM POC: "&B33 -> PM POC:
BE64: Seymour_Johnson_AFB | BF64: Richard Thomas | BH64: ="BCOES Coordinator: Rich Sillin x5094" -> BCOES Coordinator: Rich Sillin x5094
BE65: Hunter_AAF | BF65: Todd McGalliard | BH65: ="Contract Type: "&(IF(#REF!=TRUE,S38,IF(#REF!=TRUE,S41,(IF(#REF!=TRUE,#REF!,IF(#REF!=TRUE,S47,(IF(#REF!=TRUE,S50,"Contact "&B33&" for plan and specification location information.")))))))) -> 
BE66: Fort_Gillem | BF66: Philip Payne | BH66: ="Contract Location: "&(IF(#REF!=TRUE,D38,IF(#REF!=TRUE,D41,(IF(#REF!=TRUE,#REF!,IF(#REF!=TRUE,D47,"Contact "&B33&" for plan and specification location information.")))))) -> 
BE67: Camp_Merrill
BF69: Troy Funk
BF70: Stephen Monjoy
BG71: Troy Funk
BE75: =IFERROR(VLOOKUP((VLOOKUP(J12,'Projects Lookup'!B2:E87,3,FALSE)),'Team Info'!AE3:AI19,3,FALSE),0) -> 0 | DA75: BCOES Fee Rates FY17
BE76: =VLOOKUP(H76,'Team Info'!A4:F14,2) -> 
BE77: =VLOOKUP(H77,'Team Info'!$M$4:$R$11,2) ->  | DA77: Less than 75 pages | DB77: 76 - 150 | DC77: 151 - 225 | DD77: 226 -300 | DE77: 301 - 375 | DF77: More than 375 pages
BE78: =VLOOKUP(H78,'Team Info'!$M$4:$R$11,2) ->  | CZ78: 0.35 | DA78: =#REF!*#REF!+#REF!*#REF!+#REF!*#REF!+#REF!*#REF!+#REF!*#REF!+#REF!*#REF!+$AF$80*#REF! ->  | DB78: =#REF!*#REF!+#REF!*#REF!+#REF!*#REF!+#REF!*#REF!+#REF!*#REF!+#REF!*#REF!+$AF$80*#REF! ->  | DC78: =#REF!*#REF!+#REF!*#REF!+#REF!*#REF!+#REF!*#REF!+#REF!*#REF!+#REF!*#REF!+$AF$80*#REF! ->  | DD78: =#REF!*#REF!+#REF!*#REF!+#REF!*#REF!+#REF!*#REF!+#REF!*#REF!+#REF!*#REF!+$AF$80*#REF! ->  | DE78: =#REF!*#REF!+#REF!*#REF!+#REF!*#REF!+#REF!*#REF!+#REF!*#REF!+#REF!*#REF!+$AF$80*#REF! ->  | DF78: =#REF!*#REF!+#REF!*#REF!+#REF!*#REF!+#REF!*#REF!+#REF!*#REF!+#REF!*#REF!+$AF$80*#REF! -> 
BE79: =VLOOKUP(H79,'Team Info'!$M$4:$R$11,2) ->  | CZ79: 0.65 | DA79: =#REF!*#REF!+#REF!*#REF!+#REF!*#REF!+#REF!*#REF!+#REF!*#REF!+#REF!*#REF!+$AF$80*#REF! ->  | DB79: =#REF!*#REF!+#REF!*#REF!+#REF!*#REF!+#REF!*#REF!+#REF!*#REF!+#REF!*#REF!+$AF$80*#REF! ->  | DC79: =#REF!*#REF!+#REF!*#REF!+#REF!*#REF!+#REF!*#REF!+#REF!*#REF!+#REF!*#REF!+$AF$80*#REF! ->  | DD79: =#REF!*#REF!+#REF!*#REF!+#REF!*#REF!+#REF!*#REF!+#REF!*#REF!+#REF!*#REF!+$AF$80*#REF! ->  | DE79: =#REF!*#REF!+#REF!*#REF!+#REF!*#REF!+#REF!*#REF!+#REF!*#REF!+#REF!*#REF!+$AF$80*#REF! ->  | DF79: =#REF!*#REF!+#REF!*#REF!+#REF!*#REF!+#REF!*#REF!+#REF!*#REF!+#REF!*#REF!+$AF$80*#REF! -> 
BE80: =VLOOKUP(H80,'Team Info'!$M$4:$R$11,2) ->  | CZ80: 0.95 | DA80: =#REF!*#REF!+#REF!*#REF!+#REF!*#REF!+#REF!*#REF!+#REF!*#REF!+#REF!*#REF!+$AF$80*#REF! ->  | DB80: =#REF!*#REF!+#REF!*#REF!+#REF!*#REF!+#REF!*#REF!+#REF!*#REF!+#REF!*#REF!+$AF$80*#REF! ->  | DC80: =#REF!*#REF!+#REF!*#REF!+#REF!*#REF!+#REF!*#REF!+#REF!*#REF!+#REF!*#REF!+$AF$80*#REF! ->  | DD80: =#REF!*#REF!+#REF!*#REF!+#REF!*#REF!+#REF!*#REF!+#REF!*#REF!+#REF!*#REF!+$AF$80*#REF! ->  | DE80: =#REF!*#REF!+#REF!*#REF!+#REF!*#REF!+#REF!*#REF!+#REF!*#REF!+#REF!*#REF!+$AF$80*#REF! ->  | DF80: =#REF!*#REF!+#REF!*#REF!+#REF!*#REF!+#REF!*#REF!+#REF!*#REF!+#REF!*#REF!+$AF$80*#REF! -> 
CZ81: 1 | DA81: =#REF!*#REF!+#REF!*#REF!+#REF!*#REF!+#REF!*#REF!+#REF!*#REF!+#REF!*#REF!+$AF$80*#REF! ->  | DB81: =#REF!*#REF!+#REF!*#REF!+#REF!*#REF!+#REF!*#REF!+#REF!*#REF!+#REF!*#REF!+$AF$80*#REF! ->  | DC81: =#REF!*#REF!+#REF!*#REF!+#REF!*#REF!+#REF!*#REF!+#REF!*#REF!+#REF!*#REF!+$AF$80*#REF! ->  | DD81: =#REF!*#REF!+#REF!*#REF!+#REF!*#REF!+#REF!*#REF!+#REF!*#REF!+#REF!*#REF!+$AF$80*#REF! ->  | DE81: =#REF!*#REF!+#REF!*#REF!+#REF!*#REF!+#REF!*#REF!+#REF!*#REF!+#REF!*#REF!+$AF$80*#REF! ->  | DF81: =#REF!*#REF!+#REF!*#REF!+#REF!*#REF!+#REF!*#REF!+#REF!*#REF!+#REF!*#REF!+$AF$80*#REF! -> 
CZ82: Total* | DA82: =SUM(DA78:DA81) -> 
BG87: Private Sub CommandButton22_Click() | CZ87: Resubmit | DA87: =#REF!*#REF!+#REF!*#REF!+#REF!*#REF!+#REF!*#REF!+#REF!*#REF!+#REF!*#REF!+$AF$80*#REF! ->  | DB87: =#REF!*#REF!+#REF!*#REF!+#REF!*#REF!+#REF!*#REF!+#REF!*#REF!+#REF!*#REF!+$AF$80*#REF! ->  | DC87: =#REF!*#REF!+#REF!*#REF!+#REF!*#REF!+#REF!*#REF!+#REF!*#REF!+#REF!*#REF!+$AF$80*#REF! ->  | DD87: =#REF!*#REF!+#REF!*#REF!+#REF!*#REF!+#REF!*#REF!+#REF!*#REF!+#REF!*#REF!+$AF$80*#REF! ->  | DE87: =#REF!*#REF!+#REF!*#REF!+#REF!*#REF!+#REF!*#REF!+#REF!*#REF!+#REF!*#REF!+$AF$80*#REF! ->  | DF87: =#REF!*#REF!+#REF!*#REF!+#REF!*#REF!+#REF!*#REF!+#REF!*#REF!+#REF!*#REF!+$AF$80*#REF! -> 
BG88: Sub Send_Range_Or_Whole_Worksheet_with_MailEnvelope()
BG89: .Attachments.Add Environ("UserProfile") & "C:\Users\K6CDBRSS\Documents\1. QA Section\10. BCOES\VBA TESTS\2016 BCOES Analysis.xlsx" | DA89: BCOES FY Comparison
BJ90: CD BCOES Review | BK90: CD | BL90: K6M1000
BJ91: QUALITY ASSURANCE SECTION | BK91: CDQ-A | BL91: K6M1WA0
BJ92: Ft BENNING AREA OFICE | BK92: CDB | BL92: K6M1D00
BJ93: FT BENNING EAST RES OFFICE | BK93: CDB-E | BL93: K6M1DE0
BJ94: FT BENNING WEST RES OFFICE | BK94: CDB-W | BL94: K6M1DF0
BJ95: NORTH CAROLINA AREA OFFICE | BK95: CDN | BL95: K6M1J00
BJ96: FT BRAGG RESIDENT OFFICE | BK96: CDN-R | BL96: K6M1JD0
BJ97: FT BRAGG BARRACKS RED OFFICE | BK97: CDN-B | BL97: K6M1JA0
BJ98: SEYMOUR JOHNSON RES OFFICE | BK98: CDN-S | BL98: K6M1JE0
BJ99: FT GORDON AREA OFFICE | BK99: CDG | BL99: K6M1A00
BJ100: CSS GEORGIA RESIDENT OFFICE | BK100: CDG-C | BL100: K6M1AC0
BJ101: FT GORDON RESIDENT OFFICE | BK101: CDG-G | BL101: K6M1AB0
BJ102: ROBINS AFB AREA OFFICE | BK102: CDW | BL102: K6M1F00
BJ103: ROBINS AFB RESIDENT OFFICE | BK103: CDW-R | BL103: K6M1FC0
BJ104: ATLANTA RESIDENT OFFICE | BK104: CDW-A | BL104: K6M1FA0
BJ105: MOODY AFB RESIDENT OFFICE | BK105: CDW-M | BL105: K6M1FB0
BJ106: FT STEWART AREA OFFICE | BK106: CDS | BL106: K6M1N00
BJ107: HUNTER AAF RESIDENT OFFICE | BK107: CDS-H | BL107: K6M1NA0
BJ108: FT STEWART RESIDENT OFFICE | BK108: CDS-S | BL108: K6M1NB0
GO126: SMALL PROJECT (65% review under 100 Plan Pages, PA usually under $15M)
GK128: 6000 | GN128: Field Office | GO128: 2000 | GP128: 4000 | GQ128: 2000 plus $20 for each additional page added since 65% review | GR128: 1000
GK129: 5500 | GN129: Mechanical | GO129: 1000 | GP129: 2500 | GQ129: 1000 plus $10 for each additional page added since 65% review | GR129: 1000
GK130: 4000 | GN130: Electrical | GO130: 1000 | GP130: 2500 | GQ130: 1000 plus $10 for each additional page added since 65% review | GR130: 500
GN131: Civil | GO131: 1000 | GP131: 1500 | GQ131: 2000 plus $20 for each additional page added since 65% review | GR131: 250
GN132: Total | GO132: =SUM(GO128:GO131) -> 5000 | GP132: =SUM(GP128:GP131) -> 10500 | GQ132: 5000 plus | GR132: =SUM(GR128:GR131) -> 2750
GO134: Large Project (100 to 250 Plan Pages, PA between $15m and $35M)
GO136: 35% Plans | GP136: 65% Plans | GQ136: 100% Plans | GR136: Final Review
GN137: Field Office | GO137: 2000
GN138: Mechanical | GO138: 1000
GN139: Electrical | GO139: 1000
GN140: Civil | GO140: 1000
GN141: Total | GO141: =SUM(GO137:GO140) -> 5000 | GQ141: =SUM(GQ137:GQ140) -> 0 | GR141: =SUM(GR137:GR140) -> 0
GO145: Mega Project (Over 250 Plan Pages)
GO147: 35% Plans | GP147: 65% Plans | GQ147: 100% Plans | GR147: Final Review
GN148: Field Office | GO148: 2000
GN149: Mechanical | GO149: 1000
GN150: Electrical | GO150: 1000
GN151: Civil | GO151: 1000
GN152: Total | GO152: =SUM(GO148:GO151) -> 5000 | GQ152: =SUM(GQ148:GQ151) -> 0 | GR152: =SUM(GR148:GR151) -> 0

Sheet Team Info (hidden)
A2: Resident/Project Engineers | B2: Email | C2: Org Code | D2: Office | E2: Phone | F2: Mobile Phone | G2: Base | H2: Architect | I2: Org Code | J2: Office | K2: Phone | L2: Mobile Phone | M2: Civil | N2: Email | O2: Org Code | P2: Office | Q2: Phone | R2: Mobile Phone | S2: Electrical | T2: Email | U2: Org Code | V2: Office | W2: Phone | X2: Mobile Phone | Y2: Mechcanical | Z2: Email | AA2: Org Code | AB2: Office | AC2: Phone | AD2: Mobile Phone | AF2: Project Manager | AG2: Email | AJ2: Project Manager NC | AK2: Phone 912-652-XXXX | AL2: Project Manager GA | AQ2: Rate | AR2: PPB Date | AS2: ORG
A3: Amy Vaughn | B3: Amy.M.Vaughn@USACE.army.mil | C3: K6M1DE0 | D3: CD-BEA | E3: 706-587-8727 | G3: (Pull Down Menu) | AE3: Jones | AF3: Jimmy Jones | AG3: Janes.F.Jones@USACE.army.mil | AH3: x5909 | AI3: Jimmy Jones x5909 | AJ3: Jimmy Jones | AK3: 5909 | AL3: Steve Hill | AM3: 5136 | AO3: E | AP3: Ford | AQ3: 115.55 | AR3: 2014-04-06 | AS3: K6M1JA0
A4: Dan Davis | B4: Daniel.H.Davis@USACE.army.mil | C4: K6M1J00 | D4: CD-BR | E4: 910-303-9950 | F4: 910-303-9950 | G4: Fort_Benning | H4: Terry Dismukes | I4: K6L0BN0 | J4: EN-DAS | K4: 912-652-5544 | M4: Andy Cox | N4: Andrew.J.Cox@USACE.army.mil | O4: K6M1WA0 | P4: CD-QA | Q4: 912-322-7772 | S4: Andy Cox | T4: Andrew.J.Cox@USACE.army.mil | U4: K6M1WA0 | V4: CD-QA | W4: 912-322-7772 | Y4: Matt Kilmer | Z4: Matthew.J.Kilmer@usace.army.mil | AA4: K6M1WA0 | AB4: CD-QA | AC4: 912-767-9840 | AD4: 912-320-5012 | AE4: Rush | AF4: Stephanie Rush | AG4: Stephanie.E.Rush@USACE.army.mil | AH4: x5796 | AI4: Stephanie Rush x5796 | AJ4: Stephanie Rush | AK4: 5796 | AL4: Glenn Comeaux | AM4: 5189 | AO4: E | AP4: Inhulsen | AQ4: 118.51 | AR4: 2014-04-06 | AS4: K6M1F00
A5: Dave Warren | B5: David.F.Warren@usace.army.mil | C5: K6M1N00 | D5: CD-ST | E5: 912-767-9819 | F5: 912-492-0142 | G5: Fort_Bragg | M5: Bill Mangum | N5: William.P.Mangum@usace.army.mil | O5: K6M1JA0 | P5: CD-BRB | Q5: 910-643-8538 | R5: 910-308-8569 | S5: Garry Inhulsen | T5: Gary.A.Inhulsen@USACE.army.mil | U5: K6M1F00 | V5: CD-RO | W5: (478) 926-2101 | X5: (478) 396-2121 | Y5: Terry Brooks | Z5: Terry.S.Brooks@usace.army.mil | AA5: K6M1JE0 | AB5: CD-ST | AC5: 919-722-7115 | AD5: 919-429-1043 | AE5: Harrell | AF5: Craig Harrell | AG5: Craig.L.Harrell@USACE.army.mil | AH5: x5150 | AI5: Craig Harrell x5150 | AJ5: Craig Harrell | AK5: 5150 | AL5: Johnny Grandison | AM5: 5660 | AO5: E | AP5: Nowers | AQ5: 103.51 | AR5: 2014-04-06 | AS5: K6M1AC0
A6: Dale Barlow | B6: Edwin.D.Barlow@USACE.army.mil | C6: K6M1F00 | D6: CD-RO | E6: 478-926-0290 | F6: 478-293-8604 | G6: Fort_Gordon_Meekins | M6: Garry Inhulsen | N6: Gary.A.Inhulsen@USACE.army.mil | O6: K6M1F00 | P6: CD-RO | Q6: (478) 926-2101 | R6: (478) 396-2121 | T6: Robert.M.Ford@USACE.army.mil | U6: K6M1JA0 | V6: CD-BRB | W6: 910-432-0036 | X6: 910-432-0036 | Y6: Bill Mangum | Z6: William.P.Mangum@usace.army.mil | AA6: K6M1JA0 | AB6: CD-BRB | AC6: 910-643-8538 | AD6: 910-308-8569 | AE6: Church | AF6: Helane Church | AG6: Helane.T.Church@USACE.army.mil | AH6: 910-396-4870 | AI6: Helane Church 910-396-4870 | AJ6: Helane Church | AK6: 910-396-4870 | AL6: Ken Epperley | AM6: 5658 | AO6: M | AP6: Brooks | AQ6: 115.55 | AR6: 2014-04-06 | AS6: K6M1JE0
A7: Marcia Meekins | B7: Marcia.C.Meekins@USACE.army.mil | C7: K6M1AB0 | D7: CD-GOC | E7: 706-305-9210 | F7: 706-962-2422 | G7: Fort_Gordon_Kye | M7: Matt Kilmer | N7: Matthew.J.Kilmer@usace.army.mil | O7: K6M1WA0 | P7: CD-QA | Q7: 912-767-9840 | R7: 912-320-5012 | AE7: Reinhardt | AF7: Chris Reinhardt | AG7: Christopher.D.Reinhardt@USACE.army.mil | AH7: x5328 | AI7: Chris Reinhardt x5328 | AJ7: Chris Reinhardt | AK7: 5328 | AL7: Tony Cady | AM7: 5642 | AO7: M | AP7: Kilmer | AQ7: 109.26 | AR7: 2014-04-06 | AS7: K6M1N00
A8: Eddie Culpepper | B8: Eddie.Culpepper@USACE.army.mil | C8: K6M1DF0 | D8: CD-BEO | E8: 706-617-4047 | F8: 706-545-9477 | G8: Fort_Stewart | M8: Mike Bringman | N8: Michael.G.Bringman@USACE.army.mil | O8: K6M1NA0 | P8: CD-STH | Q8: (912) 656-5258 | AE8: Peralta | AF8: Michelle Peralta | AG8: Michelle.Peralta@USACE.army.mil | AH8: x5103 | AI8: Michelle Peralta x5103 | AJ8: Michelle Peralata | AK8: 5103 | AL8: Tim Morris | AM8: 5506 | AO8: M | AP8: Mangum | AQ8: 115.55 | AR8: 2014-04-06 | AS8: K6M1JA0
A9: Karl Gabzdyl | B9: Karl.A.Gabzdyl@USACE.army.mil | C9: K6M1JA0 | D9: CD-BRB | E9: 910-643-4388 | F9: 910-308-8570 | G9: Robins_AFB | M9: Rich Sillin | N9: Richard.S.Sillin@USACE.army.mil | O9: K6M1WA0 | P9: CD-QA | Q9: 912-652-5094 | AE9: Leyva-Colon | AF9: Lourdes Leyva-Colon | AG9: Lourdes.S.Leyva-Colon@USACE.army.mil | AH9: x5029 | AI9: Lourdes Leyva-Colon x5029 | AJ9: Lourdes Leyva-Colon | AK9: 5029 | AL9: Hal Kerkhoff | AM9: 5754 | AO9: C | AP9: Sillin | AQ9: 116.26 | AR9: 2014-04-06 | AS9: K6M1WA0
A10: Karl VanStavorenn | B10: Karl.F.VanStavoren@USACE.army.mil | C10: K6M1NB0 | D10: CD-STS | E10: 912-767-6878 | F10: 910-303-9985 | G10: Seymour_Johnson_AFB | M10: Robert Ford | N10: Robert.M.Ford@USACE.army.mil | O10: K6M1JA0 | P10: CD-BRB | Q10: 910-432-0036 | R10: 910-432-0036 | AE10: Hill | AF10: Steve Hill | AG10: Steven.A.Hill@USACE.army.mil | AH10: x5136 | AI10: Steve Hill x5136 | AL10: Ken Bright | AM10: 540-667-2950 | AO10: A | AP10: Murphy | AQ10: 89.14 | AR10: 2014-04-06 | AS10: K6M1WA0
A11: Philip Payne | B11: Phillip.G.Payne@USACE.army.mil | C11: K6M1AC0 | D11: CD-GOG | E11: 706-791-4234 | F11: 706-969-2372 | G11: Hunter_AAF | M11: Terry Brooks | N11: Terry.S.Brooks@usace.army.mil | O11: K6M1JE0 | P11: CD-ST | Q11: 919-722-7115 | R11: 919-429-1043 | AE11: Comeaux | AF11: Glenn Comeaux | AG11: Glenn.E.Comeaux@USACE.army.mil | AH11: x5189 | AI11: Glenn Comeaux x5189
A12: Richard Thomas | B12: Richard.N.Thomas@USACE.army.mil | C12: K6M1FC0 | D12: CD-ROR | E12: 478-926-2149 | G12: Fort_Gillem | AE12: Grandison | AF12: Johnny Grandison | AG12: Johnny.L.Grandison2@USACE.army.mil | AH12: x5660 | AI12: Johnny Grandison x5660 | AL12: Mark Puhalla | AM12: 5696
A13: Steve Blanchard | B13: Stephen.T.Blanchard@USACE.army.mil | C13: K6M1JE0 | D13: CD-BRJ | E13: 919-722-5869 | F13: 919-429-1048 | G13: Camp_Merrill | AE13: Epperley | AF13: Ken Epperley | AG13: Kenneth.D.Epperley@usace.army.mil | AH13: x5658 | AI13: Ken Epperley x5658 | AL13: Glynn Richards | AM13: 5659 | AO13: E | AP13: Fogt | AQ13: 112.12 | AR13: 2014-03-23 | AS13: K6M1NB0
A14: Troy Funk | B14: Troy.A.Funk@USACE.army.mil | C14: K6M1NA0 | D14: CD-STH | E14: 912-652-6152 | F14: 912-856-7743 | G14: Other | AE14: Cady | AF14: Tony Cady | AG14: Anthony.E.Cady@USACE.army.mil | AH14: x5642 | AI14: Tony Cady x5642 | AO14: C | AP14: Bringman | AQ14: 81.57 | AR14: 2014-04-06 | AS14: K6M1NA0
A15: Harry Kye | B15: Harry.H.Kye@usace.army.mil | C15: K6M1A00 | D15: CD-GO | E15: 706-771-1391 | AE15: Morris | AF15: Tim Morris | AG15: Timothy.C.Morris@USACE.army.mil | AH15: x5506 | AI15: Tim Morris x5506
AE16: Kerkhoff | AF16: Hal Kerkhoff | AG16: Harold.J.Kerkhoff@USACE.army.mil | AH16: x5754 | AI16: Hal Kerkhoff x5754
AE17: Bright | AF17: Ken Bright | AG17: Kenneth.O.Bright@USACE.army.mil | AH17: 540-667-2950 | AI17: Ken Bright 540-667-2950
AE18: Puhalla | AF18: Mark Puhalla | AG18: Mark.T.Puhalla@USACE.army.mil | AH18: x5696 | AI18: Mark Puhalla x5696
AE19: Richards | AF19: Glynn Richards | AG19: Glynn.W.Richards@USACE.army.mil | AH19: x5659 | AI19: Glynn Richards x5659
H22: Ford | I22: 115.55 | AF22: Jimmy Jones x5909 | AG22: Janes.F.Jones@USACE.army.mil
G23: E | H23: Inhulsen | I23: 118.51 | AF23: Stephanie Rush x5796 | AG23: Stephanie.E.Rush@USACE.army.mil
G24: E | H24: Nowers | I24: 103.51 | AF24: Craig Harrell x5150 | AG24: Craig.L.Harrell@USACE.army.mil
G25: E | H25: Brooks | I25: 115.55 | AF25: Helane Church 910-396-4870 | AG25: Helane.T.Church@USACE.army.mil
G26: M | H26: Kilmer | I26: 109.26 | AF26: Chris Reinhardt x5328 | AG26: Christopher.D.Reinhardt@USACE.army.mil
G27: M | H27: Mangum | I27: 115.55 | AF27: Michelle Peralta x5103 | AG27: Michelle.Peralta@USACE.army.mil
G28: M | H28: Sillin | I28: 116.26 | AF28: Lourdes Leyva-Colon x5029 | AG28: Lourdes.S.Leyva-Colon@USACE.army.mil
G29: C | H29: Murphy | I29: 89.14 | AF29: Steve Hill x5136 | AG29: Steven.A.Hill@USACE.army.mil
G30: A | AF30: Glenn Comeaux x5189 | AG30: Glenn.E.Comeaux@USACE.army.mil
H31: Fogt | I31: 112.12 | AF31: Johnny Grandison x5660 | AG31: Johnny.L.Grandison2@USACE.army.mil
G32: E | H32: Bringman | I32: 81.57 | AF32: Ken Epperley x5658 | AG32: Kenneth.D.Epperley@usace.army.mil
G33: C | AF33: Tony Cady x5642 | AG33: Anthony.E.Cady@USACE.army.mil
AF34: Tim Morris x5506 | AG34: Timothy.C.Morris@USACE.army.mil
AF35: Hal Kerkhoff x5754 | AG35: Harold.J.Kerkhoff@USACE.army.mil
AF36: Ken Bright 540-667-2950 | AG36: Kenneth.O.Bright@USACE.army.mil
AF37: Mark Puhalla x5696 | AG37: Mark.T.Puhalla@USACE.army.mil
AF38: Glynn Richards x5659 | AG38: Glynn.W.Richards@USACE.army.mil

Sheet BCOES FY16 History (hidden)
D2: PA | F2: Admin/Civil | G2: Arch | H2: Structural | I2: RE/PE | J2: Supervisor | K2: Mech | L2: Civil | M2: Elec | N2: Total
B3: BCOEs - Air Traffic Control Tower BOC Seymour Johnson AFB-Craig-Harrell-2016 | C3: 0.95 | D3: 17100000 | E3: =D3/N3 -> 976.6405848 | F3: 1830 | G3: 2227 | I3: 5536 | J3: 963 | K3: 2808 | L3: 926 | M3: 3220 | N3: 17509
B4: BCOEs - Bragg Butner road - Mrs Peralta-2016 Revision -1 | C4: 1 | D4: 32944000 | E4: =D4/N4 -> 1816.297276 | F4: 1830 | G4: 4453 | I4: 4429 | J4: 1927 | K4: 1872 | L4: 1481 | M4: 2147 | N4: 18138
B5: BCOEs - Bragg renovation for maintenance complex- Reveiw after 100 percent Final - Mrs Peralta-Rev 3 | C5: 1 | E5: 0 | F5: 1000 | G5: 1000 | I5: 1000 | J5: 1000 | K5: 1000 | L5: 1000 | M5: 1000 | N5: 7000
B6: BCOEs - SOF TUAV Maint Facility - Benning GA Mark-Puhalla-2016 | E6: 0 | F6: 1873 | G6: 2227 | I6: 2843 | J6: 986 | K6: 1916 | L6: 948 | M6: 1931 | N6: 12714
B7: BCOEs - Winship Renovation Hal Kerkhoff -2016 | D7: 14300000 | E7: 1202.994868 | F7: 1830 | G7: 1113 | I7: 3322 | J7: 963 | K7: 1872 | L7: 926 | M7: 1862 | N7: 11887
B8: BCOEs -Runway at Camp Mackall - Lourdes 2016 | E8: 0 | F8: 915 | I8: 3322 | J8: 963 | L8: 1111 | M8: 1397 | N8: 7707
B9: BCOEs-bldg 2761 TBUP -08-02-2016 | D9: 22000000 | E9: 1915.375239 | F9: 1144 | G9: 1113 | I9: 3322 | J9: 963 | K9: 1872 | L9: 926 | M9: 2147 | N9: 11486
B10: BCOEs-bldg 3105 Starship Barracks TBUP -07-25-2016 Rev -1 | D10: 33000000 | E10: 2873.062859 | F10: 1144 | G10: 1113 | I10: 3322 | J10: 963 | K10: 1872 | L10: 926 | M10: 2147 | N10: 11486
B11: BCOEs-CIDC Field Operations Bldg - 07-27-2016 | D11: 2000000 | E11: 174.1250218 | F11: 1144 | G11: 1113 | I11: 3322 | J11: 926 | K11: 1872 | L11: 926 | M11: 2147 | N11: 11486
B12: BCOEs-Milcon AF Personnel Recovery Hanger - HMU - Moody AFB -08-02-2016 | E12: 0 | F12: 1144 | G12: 1113 | I12: 3322 | J12: 963 | K12: 1872 | L12: 3322 | M12: 2147 | N12: 13882
B14: AVERAGES | F14: =AVERAGE(F3:F12) -> 1385.4 | G14: =AVERAGE(G3:G12) -> 1719.111111 | I14: 3374 | J14: 1061.7 | K14: 1884 | L14: 1249.2 | M14: 2014.5 | N14: 12329.5
B15: LOW | F15: =MIN(F3:F12) -> 915 | G15: =MIN(G3:G12) -> 1000 | I15: 1000 | J15: 926 | K15: 1000 | L15: 926 | M15: 1000 | N15: 7000
B16: HIGH | F16: =MAX(F3:F12) -> 1873 | G16: =MAX(G3:G12) -> 4453 | I16: 5536 | J16: 1927 | K16: 2808 | L16: 3322 | M16: 3220 | N16: 18138
B18: NEW HIGH | G18: =G16+($J$27/10/5)+(($F$27-200)/10/5) -> 4938.42 | I18: =I16+($J$27/10/5)+(($F$27-200)/10/5) -> 6021.42 | K18: =K16+($J$27/10/5)+(($F$27-200)/10/5) -> 3293.42 | L18: =L16+($J$27/10/5)+(($F$27-200)/10/5) -> 3807.42 | M18: =M16+($J$27/10/5)+(($F$27-200)/10/5) -> 3705.42 | N18: =N16+($J$27/10/5)+(($F$27-200)/10/5) -> 18623.42
B19: NEW LOW | G19: =G15+($J$27/10/5)+(($F$27-200)/10/5) -> 1485.42 | I19: =I15+($J$27/10/5)+(($F$27-200)/10/5) -> 1485.42 | K19: =K15+($J$27/10/5)+(($F$27-200)/10/5) -> 1485.42 | L19: =L15+($J$27/10/5)+(($F$27-200)/10/5) -> 1411.42 | M19: =M15+($J$27/10/5)+(($F$27-200)/10/5) -> 1485.42 | N19: =N15+($J$27/10/5)+(($F$27-200)/10/5) -> 7485.42
P20: Ford | Q20: 115.55
B21: NEW HIGH HOURS | G21: =G18/Q27 -> 55.40071797 | I21: =I18/Q25 -> 52.11094764 | K21: =K18/Q24 -> 30.14296174 | L21: =L18/Q26 -> 32.74918287 | M21: =M18/Q21 -> 31.26672855 | P21: Inhulsen | Q21: 118.51
B22: NEW LOW HOURS | G22: =G19/Q27 -> 16.66389948 | I22: =I19/Q25 -> 12.85521419 | K22: =K19/Q24 -> 13.59527732 | L22: =L19/Q26 -> 12.14020299 | M22: =M19/Q21 -> 12.53413214 | P22: Nowers | Q22: 103.51
P23: Brooks | Q23: 115.55
P24: Kilmer | Q24: 109.26
P25: Mangum | Q25: 115.55
P26: Sillin | Q26: 116.26
B27: TOTALS | F27: =SUM(F3:F12) -> 13854 | G27: =SUM(G3:G12) -> 15472 | I27: =SUM(I3:I12) -> 33740 | J27: 10617 | K27: 16956 | L27: 12492 | M27: 20145 | N27: 123295 | P27: Murphy | Q27: 89.14
P29: Fogt | Q29: 112.12
P30: Bringman | Q30: 81.57
D32: PAGES | G32: Arch | H32: Structural | I32: RE/PE | K32: Mech | L32: Civil | M32: Elec
J33: 65% and 95%
B34: NEW HIGH HOURS | D34: 376 & Up | G34: =G35+5 -> 32.70035899 | H34: 33 | I34: 62 | K34: 34 | L34: 38 | M34: 35 | O34: 401 - 500 | P34: 201 - UP
D35: 301 & 375 | F35: 55.40071797 | G35: 27.70035899 | H35: 27.70035899 | I35: 52.11094764 | K35: 30.14296174 | L35: 32.74918287 | M35: 31.26672855 | O35: 301 - 400 | P35: 151 - 200
D36: 226 - 300 | F36: =F37+($F$35-$F$39)/4 -> 45.71651335 | G36: 22.85825667 | H36: 22.85825667 | I36: =I37+($I$35-$I$39)/4 -> 42.29701428 | K36: =K37+($K$35-$K$39)/4 -> 26.00604064 | L36: =L37+($L$35-$L$39)/4 -> 27.5969379 | M36: =M37+($M$35-$M$39)/4 -> 26.58357944 | O36: 201 - 300 | P36: 101 - 150
D37: 151 - 225 | F37: =F38+($F$35-$F$39)/4 -> 36.03230873 | G37: 18.01615436 | H37: 18.01615436 | I37: =I38+($I$35-$I$39)/4 -> 32.48308092 | K37: =K38+($K$35-$K$39)/4 -> 21.86911953 | L37: =L38+($L$35-$L$39)/4 -> 22.44469293 | M37: =M38+($M$35-$M$39)/4 -> 21.90043034 | O37: 101- 200 | P37: 51 - 100
B38: NEW LOW HOURS | D38: 76 - 150 | F38: =F39+($F$35-$F$39)/4 -> 26.34810411 | G38: 13.17405205 | H38: 13.17405205 | I38: =I39+($I$35-$I$39)/4 -> 22.66914756 | K38: =K39+($K$35-$K$39)/4 -> 17.73219843 | L38: =L39+($L$35-$L$39)/4 -> 17.29244796 | M38: =M39+($M$35-$M$39)/4 -> 17.21728124 | O38: 0 - 100 | P38: 0 - 50
D39: 0 - 75 | F39: 16.66389948 | G39: 8.331949742 | H39: 8.331949742 | I39: 12.85521419 | K39: 13.59527732 | L39: 12.14020299 | M39: 12.53413214
J42: 35% - 100% Resubmit
D43: 376 & Up | G43: 11 | H43: 11 | I43: 20 | K43: 12 | L43: 14 | M43: 12
D44: 301 & 375 | G44: =G35/3 -> 9.233452995 | H44: =H35/3 -> 9.233452995 | I44: 17.37031588 | J44: 0 | K44: 10.04765391 | L44: 10.91639429 | M44: 10.42224285
D45: 226 - 300 | G45: =G36/3 -> 7.619418892 | H45: 7.619418892 | I45: 14.09900476 | J45: 0 | K45: 8.668680212 | L45: 9.198979299 | M45: 8.861193148
D46: 151 - 225 | G46: 6.005384788 | H46: 6.005384788 | I46: 10.82769364 | J46: 0 | K46: 7.28970651 | L46: 7.48156431 | M46: 7.300143448
D47: 76 - 150 | G47: 4.391350684 | H47: 4.391350684 | I47: 7.556382518 | J47: 0 | K47: 5.910732809 | L47: 5.76414932 | M47: 5.739093747
D48: 0 - 75 | G48: 2.777316581 | H48: 2.777316581 | I48: 4.285071398 | J48: 0 | K48: 4.531759107 | L48: 4.046734331 | M48: 4.178044047

Sheet Projects Lookup (hidden)
A1: ='Project EX Input'!C1 -> INST | B1: ='Project EX Input'!E1 -> PROJECTNAME | C1: ='Project EX Input'!F1 -> PN | D1: ='Project EX Input'!J1 -> PM | E1: ='Project EX Input'!L1 -> PA | F1: FY | H1: Fort Benning | I1: Fort Bragg | J1: Fort Gillum | K1: Fort Gordon | L1: Hunter AAF | M1: Fort Jackson | N1: Maxwell AFB | O1: Camp Merrill | P1: Moody AFB | Q1: Robins AFB | R1: Fort Rucker | S1: Seymour Johnson AFB | T1: Fort Stewart
A2: ='Project EX Input'!C19 -> 0 | B2: ='Project EX Input'!E19 -> 0 | C2: ='Project EX Input'!F19 -> 0 | D2: ='Project EX Input'!J19 -> 0 | E2: ='Project EX Input'!L19 -> 0 | H2: Pull Down Menu
A3: ='Project EX Input'!C20 -> 0 | B3: ='Project EX Input'!E20 -> 0 | C3: ='Project EX Input'!F20 -> 0 | D3: ='Project EX Input'!J20 -> 0 | E3: ='Project EX Input'!L20 -> 0 | H3: =B23 -> Maneuver / Training Area Heavy Forces | I3: =B30 -> Water Source Heat Pumps, Cooling Tower | J3: =IF($A2="Benning",$B2," ") ->  | K3: =B36 -> Command and Control Facility | L3: =IF($A2="Benning",$B2," ") ->  | M3: =B44 -> Replace Pierce Terrace ES | N3: =B45 -> Replace/Renovate Maxwell ES/MS | O3: =IF($A2="Benning",$B2," ") ->  | P3: =B46 -> Replace Truck Fill Stand | Q3: =B47 -> Airfield Fence & Gates | R3: =IF($A2="Benning",$B2," ") ->  | S3: =B50 -> Air Traffic Control Tower/Base Operations Complex | T3: =B51 -> MP Station
A4: ='Project EX Input'!C21 -> 0 | B4: ='Project EX Input'!E21 -> Design in Progress | C4: ='Project EX Input'!F21 -> OTHER FY-16 & Prior Under Design | D4: ='Project EX Input'!J21 -> 0 | E4: ='Project EX Input'!L21 -> 62744000 | H4: Blg 2761 TBUP | I4: Replace Butner ES | K4: =B37 -> SCIF (Cyber CoE Battle Lab) | Q4: =B48 -> 0 | T4: =B52 -> SOF Company Ops Facility
A5: ='Project EX Input'!C22 -> 0 | B5: ='Project EX Input'!E22 -> Advertised | C5: ='Project EX Input'!F22 -> OTHER FY-16 & Prior Advertised | D5: ='Project EX Input'!J22 -> 0 | E5: ='Project EX Input'!L22 -> 20592000 | H5: Blg 3105 TBUP | I5: Repair TBUP Bldg. D-3026 | K5: Administrative Building, General Purpose | T5: =B53 -> CIDC Field Operations Building
A6: ='Project EX Input'!C23 -> 0 | B6: ='Project EX Input'!E23 -> Evaluating proposals | C6: ='Project EX Input'!F23 -> OTHER FY-16 & Prior Proposals Rec'd & Eval in Prog | D6: ='Project EX Input'!J23 -> 0 | E6: ='Project EX Input'!L23 -> 93750000 | H6: Ranger Barracks 2937, 2938, 2939 | I6: Renovate Pope Fire Station | K6: Winship Hall Repair, Bldg. 29718 | T6: =B54 -> Support / Maintenance Warehouse
A7: ='Project EX Input'!C24 -> 0 | B7: ='Project EX Input'!E24 -> Discussions in progress | C7: ='Project EX Input'!F24 -> OTHER FY-16 & Prior In Discussions | D7: ='Project EX Input'!J24 -> 0 | E7: ='Project EX Input'!L24 -> 0 | H7: Ranger Barracks 2936, 2940 | I7: Renovate Volar Barracks 4445,4350, 5784, 5117, & 5122 | K7: Cyber CoE RLB Swing Space | T7: =B55 -> VFD Drives in HVAC Systems
A8: ='Project EX Input'!C25 -> 0 | B8: ='Project EX Input'!E25 -> Funds and Code 9 req. | C8: ='Project EX Input'!F25 -> OTHER FY-16 & Prior Awaiting funds and Code 9 | D8: ='Project EX Input'!J25 -> 0 | E8: ='Project EX Input'!L25 -> 0 | H8: Blg 3305 TBUP | I8: Replace GREEN Ramp, North (Phase II), FA-80003-3P | K8: NCOA Bks HVAC Repair
A9: ='Project EX Input'!C26 -> 0 | B9: ='Project EX Input'!E26 -> Award in Progress | C9: ='Project EX Input'!F26 -> OTHER FY-16 & Prior Ready To Award | D9: ='Project EX Input'!J26 -> 0 | E9: ='Project EX Input'!L26 -> 0 | H9: Bldgs 2817 & 298 Retrofit Chillers | K9: TBUP Bldg 25703
A10: ='Project EX Input'!C27 -> 0 | B10: ='Project EX Input'!E27 -> Reprogramming action required | C10: ='Project EX Input'!F27 -> OTHER FY-16 & Prior Under Congressional Reprog | D10: ='Project EX Input'!J27 -> 0 | E10: ='Project EX Input'!L27 -> 105912000 | H10: =IF(A9="Benning",B9," ") ->  | K10: =B43 -> Cyber COE RLB SCIF
A11: ='Project EX Input'!C28 -> 0 | C11: ='Project EX Input'!F28 -> OTHER FY-16 & Prior Awarded | D11: ='Project EX Input'!J28 -> 0 | E11: ='Project EX Input'!L28 -> 1600000
A12: ='Project EX Input'!C29 -> 0 | C12: ='Project EX Input'!F29 -> 0 | D12: ='Project EX Input'!J29 -> 0 | E12: ='Project EX Input'!L29 -> 284598000
A13: ='Project EX Input'!C30 -> 0 | C13: ='Project EX Input'!F30 -> 0 | D13: ='Project EX Input'!J30 -> 0 | E13: ='Project EX Input'!L30 -> 0
A14: ='Project EX Input'!C46 -> 0 | C14: ='Project EX Input'!F46 -> 0 | D14: ='Project EX Input'!J46 -> 0 | E14: ='Project EX Input'!L46 -> 0
A15: ='Project EX Input'!C47 -> 0 | C15: ='Project EX Input'!F47 -> 0 | D15: ='Project EX Input'!J47 -> 0 | E15: ='Project EX Input'!L47 -> 0
A16: ='Project EX Input'!C48 -> 0 | C16: ='Project EX Input'!F48 -> 0 | D16: ='Project EX Input'!J48 -> 0 | E16: ='Project EX Input'!L48 -> 0
A17: ='Project EX Input'!C49 -> 0 | C17: ='Project EX Input'!F49 -> 0 | D17: ='Project EX Input'!J49 -> 0 | E17: ='Project EX Input'!L49 -> 0
A18: ='Project EX Input'!C50 -> 0 | C18: ='Project EX Input'!F50 -> 0 | D18: ='Project EX Input'!J50 -> 0 | E18: ='Project EX Input'!L50 -> 0
A19: ='Project EX Input'!C51 -> 0 | C19: ='Project EX Input'!F51 -> 0 | D19: ='Project EX Input'!J51 -> 0 | E19: ='Project EX Input'!L51 -> 0
A20: ='Project EX Input'!C52 -> 0 | C20: ='Project EX Input'!F52 -> 0 | D20: ='Project EX Input'!J52 -> 0 | E20: ='Project EX Input'!L52 -> 0
A21: ='Project EX Input'!C53 -> 0 | C21: ='Project EX Input'!F53 -> 0 | D21: ='Project EX Input'!J53 -> 0 | E21: ='Project EX Input'!L53 -> 0
A22: ='Project EX Input'!C54 -> 0 | C22: ='Project EX Input'!F54 -> 0 | D22: ='Project EX Input'!J54 -> 0 | E22: ='Project EX Input'!L54 -> 0
A23: ='Project EX Input'!C15 -> Benning | B23: ='Project EX Input'!E15 -> Maneuver / Training Area Heavy Forces | C23: ='Project EX Input'!F15 -> 87980 | D23: ='Project EX Input'!J15 -> Grandison | E23: ='Project EX Input'!L15 -> 2850000 | F23: 16
A24: ='Project EX Input'!C31 -> Benning | B24: Blg 2761 TBUP | C24: ='Project EX Input'!F31 -> 0 | D24: ='Project EX Input'!J31 -> Reinhardt | E24: ='Project EX Input'!L31 -> 22000000 | F24: 16
A25: ='Project EX Input'!C32 -> Benning | B25: Blg 3105 TBUP | C25: ='Project EX Input'!F32 -> 0 | D25: ='Project EX Input'!J32 -> Reinhardt | E25: ='Project EX Input'!L32 -> 33000000 | F25: 16
A26: ='Project EX Input'!C33 -> Benning | B26: Ranger Barracks 2937, 2938, 2939 | C26: ='Project EX Input'!F33 -> 0 | D26: ='Project EX Input'!J33 -> Reinhardt | E26: ='Project EX Input'!L33 -> 10500000 | F26: 16
A27: ='Project EX Input'!C34 -> Benning | B27: Ranger Barracks 2936, 2940 | C27: ='Project EX Input'!F34 -> 0 | D27: ='Project EX Input'!J34 -> Reinhardt | E27: ='Project EX Input'!L34 -> 7000000 | F27: 16
A28: ='Project EX Input'!C44 -> Benning | B28: Blg 3305 TBUP | C28: ='Project EX Input'!F44 -> 0 | D28: ='Project EX Input'!J44 -> Reinhardt | E28: ='Project EX Input'!L44 -> 32498000 | F28: 16
A29: Benning | B29: Bldgs 2817 & 298 Retrofit Chillers | C29: 85776 | D29: Comeaux | E29: 2000000 | F29: 17
A30: ='Project EX Input'!C3 -> Bragg | B30: ='Project EX Input'!E3 -> Water Source Heat Pumps, Cooling Tower | C30: ='Project EX Input'!F3 -> 87500 | D30: ='Project EX Input'!J3 -> Comeaux | E30: ='Project EX Input'!L3 -> 1850000 | F30: 15
A31: ='Project EX Input'!C11 -> Bragg | B31: ='Project EX Input'!E11 -> Replace Butner ES | C31: ='Project EX Input'!F11 -> AM00045 | D31: ='Project EX Input'!J11 -> Peralta | E31: ='Project EX Input'!L11 -> 32944000 | F31: 16
A32: ='Project EX Input'!C37 -> Bragg | B32: Repair TBUP Bldg. D-3026 | C32: ='Project EX Input'!F37 -> FA-11601-3P | D32: ='Project EX Input'!J37 -> Leyva-Colon | E32: ='Project EX Input'!L37 -> 5000000 | F32: 16
A33: ='Project EX Input'!C38 -> Bragg | B33: Renovate Pope Fire Station | C33: ='Project EX Input'!F38 -> FA-11006-3P | D33: ='Project EX Input'!J38 -> Leyva-Colon | E33: ='Project EX Input'!L38 -> 5000000 | F33: 16
A34: ='Project EX Input'!C39 -> Bragg | B34: Renovate Volar Barracks 4445,4350, 5784, 5117, & 5122 | C34: ='Project EX Input'!F39 -> FA-11312-9P | D34: ='Project EX Input'!J39 -> Leyva-Colon | E34: ='Project EX Input'!L39 -> 25000000 | F34: 16
A35: ='Project EX Input'!C45 -> Bragg | B35: Replace GREEN Ramp, North (Phase II), FA-80003-3P | C35: ='Project EX Input'!F45 -> FA-80003-3P | D35: ='Project EX Input'!J45 -> Leyva-Colon | E35: ='Project EX Input'!L45 -> 16026182 | F35: 16
A36: ='Project EX Input'!C6 -> Gordon | B36: ='Project EX Input'!E6 -> Command and Control Facility | C36: ='Project EX Input'!F6 -> 85811 | D36: ='Project EX Input'!J6 -> Puhalla | E36: ='Project EX Input'!L6 -> 90000000 | F36: 16
A37: ='Project EX Input'!C14 -> Gordon | B37: ='Project EX Input'!E14 -> SCIF (Cyber CoE Battle Lab) | C37: ='Project EX Input'!F14 -> 87627 | D37: ='Project EX Input'!J14 -> Kerkhoff | E37: ='Project EX Input'!L14 -> 2550000 | F37: 16
A38: ='Project EX Input'!C17 -> Gordon | B38: ='Project EX Input'!E17 -> Administrative Building, General Purpose | C38: ='Project EX Input'!F17 -> 89734 | D38: ='Project EX Input'!J17 -> Cady | E38: ='Project EX Input'!L17 -> 2300000 | F38: 16
A39: ='Project EX Input'!C35 -> Gordon | B39: Winship Hall Repair, Bldg. 29718 | C39: ='Project EX Input'!F35 -> 86038 | D39: ='Project EX Input'!J35 -> Kerkhoff | E39: ='Project EX Input'!L35 -> 14300000 | F39: 16
A40: ='Project EX Input'!C36 -> Gordon | B40: Cyber CoE RLB Swing Space | C40: ='Project EX Input'!F36 -> ST-06141-6P | D40: ='Project EX Input'!J36 -> Kerkhoff | E40: ='Project EX Input'!L36 -> 6500000 | F40: 16
A41: ='Project EX Input'!C41 -> Gordon | B41: NCOA Bks HVAC Repair | C41: ='Project EX Input'!F41 -> PN 78045 (Bldg 24404) PN 78043 (Bldg 24407) | D41: ='Project EX Input'!J41 -> Cady | E41: ='Project EX Input'!L41 -> 7000000 | F41: 17
A42: ='Project EX Input'!C42 -> Gordon | B42: TBUP Bldg 25703 | C42: ='Project EX Input'!F42 -> 79855 | D42: ='Project EX Input'!J42 -> Kerkhoff | E42: ='Project EX Input'!L42 -> 15000000 | F42: 16
A43: ='Project EX Input'!C43 -> Gordon | B43: Cyber COE RLB SCIF | C43: ='Project EX Input'!F43 -> 0 | D43: ='Project EX Input'!J43 -> Kerkhoff | E43: ='Project EX Input'!L43 -> 13730000 | F43: 16
A44: ='Project EX Input'!C12 -> Jackson | B44: ='Project EX Input'!E12 -> Replace Pierce Terrace ES | C44: ='Project EX Input'!F12 -> AM00035 | D44: ='Project EX Input'!J12 -> Peralta | E44: ='Project EX Input'!L12 -> 26157000 | F44: 16
A45: ='Project EX Input'!C13 -> Maxwell | B45: ='Project EX Input'!E13 -> Replace/Renovate Maxwell ES/MS | C45: ='Project EX Input'!F13 -> AM00110 | D45: ='Project EX Input'!J13 -> Lourdes | E45: ='Project EX Input'!L13 -> 32968000 | F45: 16
A46: ='Project EX Input'!C7 -> Moody | B46: ='Project EX Input'!E7 -> Replace Truck Fill Stand | C46: ='Project EX Input'!F7 -> DESC1710 | D46: ='Project EX Input'!J7 -> Grandison | E46: ='Project EX Input'!L7 -> 10900000 | F46: 16
A47: ='Project EX Input'!C9 -> Robins | B47: ='Project EX Input'!E9 -> Airfield Fence & Gates | C47: ='Project EX Input'!F9 -> UHHZ110323W | D47: ='Project EX Input'!J9 -> Harrell | E47: ='Project EX Input'!L9 -> 1900000 | F47: 16
A48: ='Project EX Input'!C40 -> Robins | C48: ='Project EX Input'!F40 -> ??? | D48: ='Project EX Input'!J40 -> Comeaux | E48: ='Project EX Input'!L40 -> 5526722 | F48: 16
A49: ='Project EX Input'!C10 -> Rucker | B49: ='Project EX Input'!E10 -> Replace Rucker ES/PS | C49: ='Project EX Input'!F10 -> AM00048 | D49: ='Project EX Input'!J10 -> Lourdes | E49: ='Project EX Input'!L10 -> 46787000 | F49: 16
A50: ='Project EX Input'!C8 -> Seymour Johnson | B50: ='Project EX Input'!E8 -> Air Traffic Control Tower/Base Operations Complex | C50: ='Project EX Input'!F8 -> VKAG013004R5 | D50: ='Project EX Input'!J8 -> Harrell | E50: ='Project EX Input'!L8 -> 17100000 | F50: 16
A51: ='Project EX Input'!C2 -> Stewart | B51: ='Project EX Input'!E2 -> MP Station | C51: ='Project EX Input'!F2 -> 81303 | D51: ='Project EX Input'!J2 -> Hill | E51: ='Project EX Input'!L2 -> 2000000 | F51: 14
A52: ='Project EX Input'!C4 -> Stewart | B52: ='Project EX Input'!E4 -> SOF Company Ops Facility | C52: ='Project EX Input'!F4 -> 57442 | D52: ='Project EX Input'!J4 -> Hill | E52: ='Project EX Input'!L4 -> 7692000 | F52: 15
A53: ='Project EX Input'!C5 -> Stewart | B53: ='Project EX Input'!E5 -> CIDC Field Operations Building | C53: ='Project EX Input'!F5 -> 86787 | D53: ='Project EX Input'!J5 -> Hill | E53: ='Project EX Input'!L5 -> 2000000 | F53: 15
A54: ='Project EX Input'!C16 -> Stewart | B54: ='Project EX Input'!E16 -> Support / Maintenance Warehouse | C54: ='Project EX Input'!F16 -> 88047 | D54: ='Project EX Input'!J16 -> Hill | E54: ='Project EX Input'!L16 -> 3000000 | F54: 16
A55: ='Project EX Input'!C18 -> Stewart | B55: ='Project EX Input'!E18 -> VFD Drives in HVAC Systems | C55: ='Project EX Input'!F18 -> 85960 | D55: ='Project EX Input'!J18 -> Comeaux | E55: ='Project EX Input'!L18 -> 1600000 | F55: 16

Sheet Data Record (hidden)
B1: 1 | C1: 2 | F1: 3
B2: Base | C2: Project | D2: PN | E2: FY | F2: PA | G2: Pagecount | H2: Mechanical | I2: Electrical | J2: Civil | K2: SuspenseDate | L2: ProjectManager | M2: ReviewLevel | N2: DateRequested | O2: DrChecks | P2: HDrive | Q2: ARMDEC | R2: HardCopy | S2: DBBAE | T2: DBBEN | U2: DBPlans | V2: RFPEN | W2: RFPAE | X2: RFPCOS | Y2: NonAwardPkg | Z2: ExcessiveBidderRFI | AA2: ConferenceOver2 | AB2: OTRequired | AC2: ScheduleFee | AD2: ProjectComments | AE2: FieldOffName | AF2: MechanicalName | AG2: ElectricalName | AH2: CivilName | AI2: CoordinatorName | AJ2: FieldOfficeCost | AK2: MechanicalCost | AL2: ElectricalCost | AM2: CivilCost | AN2: CoordinatorCost | AO2: TotalCost
B3: Seymour_Johnson_AFB | C3: Air Traffic Control Tower/Base Operations Complex | D3: VKAG013004R5 | E3: 16 | F3: 17100000 | G3: 16 | H3: TRUE | I3: TRUE | J3: TRUE | K3: 2016-09-13 | L3: Craig Harrell x5150 | M3: 0.35 | N3: 2016-09-01 | O3: FALSE | P3: FALSE | Q3: FALSE | R3: FALSE | S3: TRUE | T3: TRUE | U3: FALSE | V3: TRUE | W3: TRUE | X3: TRUE | Y3: TRUE | Z3: TRUE | AA3: TRUE | AB3: TRUE | AC3: TRUE | AE3: H56 | AF3: Matt Kilmer | AG3: Andy Cox | AH3: Rich Sillin | AI3: Rich Sillin | AJ3: 0 | AK3: 0 | AL3: 0 | AM3: 0 | AN3: 230 | AO3: 0
B4: Seymour_Johnson_AFB | C4: Air Traffic Control Tower/Base Operations Complex | D4: VKAG013004R5 | E4: 16 | F4: 17100000 | G4: 16 | H4: TRUE | I4: TRUE | J4: TRUE | K4: 2016-09-13 | L4: Craig Harrell x5150 | M4: 0.35 | N4: 2016-09-01 | O4: FALSE | P4: FALSE | Q4: FALSE | R4: FALSE | S4: TRUE | T4: TRUE | U4: FALSE | V4: TRUE | W4: TRUE | X4: TRUE | Y4: TRUE | Z4: TRUE | AA4: TRUE | AB4: TRUE | AC4: TRUE | AE4: H56 | AF4: Matt Kilmer | AG4: Andy Cox | AH4: Rich Sillin | AI4: Rich Sillin | AJ4: 0 | AK4: 0 | AL4: 0 | AM4: 0 | AN4: 230 | AO4: 0
B5: Seymour_Johnson_AFB | C5: Air Traffic Control Tower/Base Operations Complex | D5: VKAG013004R5 | E5: 16 | F5: 17100000 | G5: 16 | H5: TRUE | I5: TRUE | J5: TRUE | K5: 2016-09-13 | L5: Craig Harrell x5150 | M5: 0.35 | N5: 2016-09-01 | O5: FALSE | P5: FALSE | Q5: FALSE | R5: FALSE | S5: TRUE | T5: TRUE | U5: FALSE | V5: TRUE | W5: TRUE | X5: TRUE | Y5: TRUE | Z5: TRUE | AA5: TRUE | AB5: TRUE | AC5: TRUE | AE5: H56 | AF5: Matt Kilmer | AG5: Andy Cox | AH5: Rich Sillin | AI5: Rich Sillin | AJ5: 0 | AK5: 0 | AL5: 0 | AM5: 0 | AN5: 230 | AO5: 0
B6: Hunter_AAF | C6: Administrative Building, General Purpose | D6: 89734 | E6: 16 | F6: 2300000 | G6: 16 | H6: TRUE | I6: FALSE | J6: FALSE | K6: 2016-10-17 | L6: Tony Cady x5642 | M6: 0.35 | N6: 2016-10-03 | O6: TRUE | P6: FALSE | Q6: FALSE | R6: FALSE | S6: FALSE | T6: TRUE | U6: FALSE | V6: FALSE | W6: FALSE | X6: FALSE | Y6: TRUE | Z6: TRUE | AA6: TRUE | AB6: TRUE | AC6: FALSE | AE6: H56 | AF6: Matt Kilmer | AG6: Andy Cox | AH6: Rich Sillin | AI6: Rich Sillin | AJ6: 1000 | AK6: 690 | AL6: 0 | AM6: 0 | AN6: 230 | AO6: 0
B7: Hunter_AAF | C7: Administrative Building, General Purpose | D7: 89734 | E7: 16 | F7: 2300000 | G7: 16 | H7: TRUE | I7: FALSE | J7: FALSE | K7: 2016-10-17 | L7: Tony Cady x5642 | M7: 0.35 | N7: 2016-10-03 | O7: TRUE | P7: FALSE | Q7: FALSE | R7: FALSE | S7: FALSE | T7: TRUE | U7: FALSE | V7: FALSE | W7: FALSE | X7: FALSE | Y7: TRUE | Z7: TRUE | AA7: TRUE | AB7: TRUE | AC7: FALSE | AE7: H56 | AF7: Matt Kilmer | AG7: Andy Cox | AH7: Rich Sillin | AI7: Rich Sillin | AJ7: 1000 | AK7: 690 | AL7: 0 | AM7: 0 | AN7: 230 | AO7: 0

Sheet Web Info (hidden)
B3: https://www.extendoffice.com/documents/excel/1355-excel-send-sheet-by-email.html#a3
B5: The Spreadsheet Guru
B7: Excel VBA For Complete Beginners
B9: http://analystcave.com/excel-vba-worksheets-tutorial-vba-activesheet-vs-worksheets/
B11: Data Type Summary
B13: What is DIM and why do people use it
B15: Getting started with VBA
B17: .ScreenUpdating = False
B19: Mail Range or selection Ron da Bruin
B21: MSDN VBA Code CH2
B23: msdn 2013 VBA
B25: Diane Poremsky
B27: Appointment Properties
B29: TechOntheNet LEN function
B31: Set objItem = objApp.ActiveInspector.GetCurrentItem()
B33: Send an email to attendees who have not responded
B35: Sub CreateMeetingsfromCSV()
B37: Save and Rename Outlook Email Attachments

Sheet Backup (hidden)
B2: BCOES REVIEW REQUEST FORM
B4: PART I. TO BE COMPLETED BY PROJECT MANAGEMENT STAFF:
B6: 1. Base: | J6: 2. Project: | AF6: 3. PA: | AO6: 4. Page Count
B7: Fort_Bragg | I7:  | J7: Command and Control Facility | AE7:  | AF7: 20000001 | AP7: 100 | BF7: =12/11 -> 1.090909091
B9: 5. Disciplines: | AI9: 4. Suspense Date:
D10: Mechanical | K10: Electrical | Q10: Civil | U10: Architect | AA10: Structural | AP10: 8/17/2016 | BF10: AO7-AP12
B12: 6. Project Manager in charge of Charge Codes: | U12: 7. Charge Code: | AB12: 8. Review Level: | AI12: 9. Date Requested:
AP13: 8/2/2016
B14: =VLOOKUP((VLOOKUP(J7,'Projects Lookup'!B2:E87,3,FALSE)),'Team Info'!AI3:AI19,4,FALSE) ->  | U14: 54H1Y45 | AB14: 100% Final | AH14: 
B17: 10. Distribution Fee - Plans and Specifications: | X17: 11. Contract Type Fee: | AJ17: 12. Special Orders Fee:
D19: ProjNet DrChecks | Q19: =IF(BE127=TRUE,IF($BE$120=TRUE,$BK$127,0)+IF($BE$121=TRUE,$BK$127,0)+IF($BE$122=TRUE,$BK$127,0)+IF($BE$123=TRUE,$BK$127,0)+IF($BE$124=TRUE,$BK$127,0)+IF($BE$125=TRUE,$BK$127,0),0) -> 0 | Z19: Design-Bid-Build AE | AL19: Non-Awardable Package
D22: Link to Shared Drive (H:) | Q22: =IF(BE128=TRUE,IF($BE$120=TRUE,$BK$128,0)+IF($BE$121=TRUE,$BK$128,0)+IF($BE$122=TRUE,$BK$128,0)+IF($BE$123=TRUE,$BK$128,0)+IF($BE$124=TRUE,$BK$128,0)+IF($BE$125=TRUE,$BK$128,0),0) -> 0 | Z22: Design-Bid-Build EN | AL22: Excessive Bidder RFI
D25: AMRDEC | Q25: =IF(BE126=TRUE,IF($BE$120=TRUE,$BK$126,0)+IF($BE$121=TRUE,$BK$126,0)+IF($BE$122=TRUE,$BK$126,0)+IF($BE$123=TRUE,$BK$126,0)+IF($BE$124=TRUE,$BK$126,0)+IF($BE$125=TRUE,$BK$126,0),0) -> 0 | Z25: Design-Build Plans | AL25: Conference Over 2 Hours
D28: CD Disk/Hard Copies | Q28: =IF(BE129=TRUE,IF($BE$120=TRUE,$BK$129,0)+IF($BE$121=TRUE,$BK$129,0)+IF($BE$122=TRUE,$BK$129,0)+IF($BE$123=TRUE,$BK$129,0)+IF($BE$124=TRUE,$BK$129,0)+IF($BE$125=TRUE,$BK$129,0),0) -> 0 | Z28: RFP EN | AE28: RFP AE | AL28: Overtime Time Required
C31: * Fees waived if requested by reviewer. | Z31: RFP COS | AL31: Schedule Fee
B34: 13. Comments for the Reviewers/Project Description:
BH37: Performance Factors | BM37: 35% Table | BS37: 65% Table | BY37: 95% Table | CE37: Resubmit | CK37: 100% Final
BF38: Non-Awardable Package | BG38: Excessive Bidder RFI | BH38: Conference Over 2 Hours | BI38: Overtime Time Required | BJ38: Schedule Fee | BK38: 0.35 | BL38: Discipline | BM38: Pages Low | BN38: Pages High | BO38: T/F | BP38: Hours | BQ38: 0.65 | BR38: Discipline | BS38: Pages Low | BT38: Pages High | BU38: T/F | BV38: Hours | BW38: 0.95 | BX38: Discipline | BY38: Pages Low | BZ38: Pages High | CA38: T/F | CB38: Hours | CC38: Resubmit | CD38: Discipline | CE38: Pages Low | CF38: Pages High | CG38: T/F | CH38: Hours | CI38: 100% Final | CJ38: Discipline | CK38: Pages Low | CL38: Pages High | CM38: T/F | CN38: Hours
BF39: 1.05 | BG39: 1.25 | BH39: 1.05 | BK39: 0.35 | BL39: Field Office | BM39: 0 | BN39: 100 | BO39: =AND($AB$14=BK39,$C$54=BL39,$AP$7>BM39,$AP$7<=BN39) -> FALSE | BP39: 2 | BQ39: 0.65 | BR39: Field Office | BS39: 0 | BT39: 100 | BU39: =AND($AB$14=BQ39,$C$54=BR39,$AP$7>BS39,$AP$7<=BT39) -> FALSE | BV39: 4 | BW39: 0.95 | BX39: Field Office | BY39: 0 | BZ39: 100 | CA39: =AND($AB$14=BW39,$C$54=BX39,$AP$7>BY39,$AP$7<=BZ39) -> FALSE | CB39: 16 | CC39: Resubmit | CD39: Field Office | CE39: 0 | CF39: 100 | CG39: =AND($AB$14=CC39,$C$54=CD39,$AP$7>CE39,$AP$7<=CF39) -> FALSE | CH39: 6 | CI39: 100% Final | CJ39: Field Office | CK39: 0 | CL39: 100 | CM39: =AND($AB$14=CI39,$C$54=CJ39,$AP$7>CK39,$AP$7<=CL39) -> TRUE | CN39: 2
BF40: 1.1 | BG40: 1.35 | BH40: 1.1 | BK40: 0.35 | BL40: Field Office | BM40: 101 | BN40: 200 | BO40: =AND($AB$14=BK40,$C$54=BL40,$AP$7>=BM40,$AP$7<=BN40) -> FALSE | BP40: 2 | BQ40: 0.65 | BR40: Field Office | BS40: 101 | BT40: 200 | BU40: FALSE | BV40: 5 | BW40: 0.95 | BX40: Field Office | BY40: 101 | BZ40: 200 | CA40: FALSE | CB40: 18 | CC40: Resubmit | CD40: Field Office | CE40: 101 | CF40: 200 | CG40: FALSE | CH40: 8 | CI40: 100% Final | CJ40: Field Office | CK40: 101 | CL40: 200 | CM40: FALSE | CN40: 2
BF41: 1 | BG41: 1.45 | BH41: 1 | BK41: 0.35 | BL41: Field Office | BM41: 201 | BN41: 300 | BO41: =AND($AB$14=BK41,$C$54=BL41,$AP$7>=BM41,$AP$7<=BN41) -> FALSE | BP41: 2 | BQ41: 0.65 | BR41: Field Office | BS41: 201 | BT41: 300 | BU41: FALSE | BV41: 6 | BW41: 0.95 | BX41: Field Office | BY41: 201 | BZ41: 300 | CA41: FALSE | CB41: 20 | CC41: Resubmit | CD41: Field Office | CE41: 201 | CF41: 300 | CG41: FALSE | CH41: 10 | CI41: 100% Final | CJ41: Field Office | CK41: 201 | CL41: 300 | CM41: FALSE | CN41: 2
BF42: 15 | BG42: 1.55 | BH42: 15 | BK42: 0.35 | BL42: Field Office | BM42: 301 | BN42: 400 | BO42: =AND($AB$14=BK42,$C$54=BL42,$AP$7>=BM42,$AP$7<=BN42) -> FALSE | BP42: 2 | BQ42: 0.65 | BR42: Field Office | BS42: 301 | BT42: 400 | BU42: FALSE | BV42: 7 | BW42: 0.95 | BX42: Field Office | BY42: 301 | BZ42: 400 | CA42: FALSE | CB42: 24 | CC42: Resubmit | CD42: Field Office | CE42: 301 | CF42: 400 | CG42: FALSE | CH42: 12 | CI42: 100% Final | CJ42: Field Office | CK42: 301 | CL42: 400 | CM42: FALSE | CN42: 2
BF43: 1.2 | BG43: 1.65 | BH43: 1.2 | BK43: 0.35 | BL43: Field Office | BM43: 401 | BN43: 500 | BO43: =AND($AB$14=BK43,$C$54=BL43,$AP$7>=BM43,$AP$7<=BN43) -> FALSE | BP43: 2 | BQ43: 0.65 | BR43: Field Office | BS43: 401 | BT43: 500 | BU43: FALSE | BV43: 8 | BW43: 0.95 | BX43: Field Office | BY43: 401 | BZ43: 500 | CA43: FALSE | CB43: 36 | CC43: Resubmit | CD43: Field Office | CE43: 401 | CF43: 500 | CG43: FALSE | CH43: 14 | CI43: 100% Final | CJ43: Field Office | CK43: 401 | CL43: 500 | CM43: FALSE | CN43: 2
BF44: 1.25 | BG44: 2 | BH44: 1.25 | BK44: 0.35 | BL44: Field Office | BM44: 501 | BN44: 1000 | BO44: =AND($AB$14=BK44,$C$54=BL44,$AP$7>=BM44,$AP$7<=BN44) -> FALSE | BP44: 2 | BQ44: 0.65 | BR44: Field Office | BS44: 501 | BT44: 1000 | BU44: FALSE | BV44: 9 | BW44: 0.95 | BX44: Field Office | BY44: 501 | BZ44: 1000 | CA44: FALSE | CB44: 40 | CC44: Resubmit | CD44: Field Office | CE44: 501 | CF44: 1000 | CG44: FALSE | CH44: 16 | CI44: 100% Final | CJ44: Field Office | CK44: 501 | CL44: 1000 | CM44: FALSE | CN44: 2
BK45: 0.35 | BL45: Mechanical | BM45: 0 | BN45: 100 | BO45: =AND($AB$14=BK45,$C$55=BL45,$AP$7>=BM45,$AP$7<=BN45) -> FALSE | BP45: 2 | BQ45: 0.65 | BR45: Mechanical | BS45: 0 | BT45: 100 | BU45: =AND($AB$14=BQ45,$C$55=BR45,$AP$7>=BS45,$AP$7<=BT45) -> FALSE | BV45: 2 | BW45: 0.95 | BX45: Mechanical | BY45: 0 | BZ45: 100 | CA45: =AND($AB$14=BW45,$C$55=BX45,$AP$7>=BY45,$AP$7<=BZ45) -> FALSE | CB45: 16 | CC45: Resubmit | CD45: Mechanical | CE45: 0 | CF45: 100 | CG45: =AND($AB$14=CC45,$C$55=CD45,$AP$7>=CE45,$AP$7<=CF45) -> FALSE | CH45: 6 | CI45: 100% Final | CJ45: Mechanical | CK45: 24 | CL45: 100 | CM45: =AND($AB$14=CI45,$C$55=CJ45,$AP$7>=CK45,$AP$7<=CL45) -> TRUE | CN45: 2
BK46: 0.35 | BL46: Mechanical | BM46: 101 | BN46: 200 | BO46: FALSE | BP46: 2 | BQ46: 0.65 | BR46: Mechanical | BS46: 101 | BT46: 200 | BU46: FALSE | BV46: 3 | BW46: 0.95 | BX46: Mechanical | BY46: 101 | BZ46: 200 | CA46: FALSE | CB46: 18 | CC46: Resubmit | CD46: Mechanical | CE46: 101 | CF46: 200 | CG46: FALSE | CH46: 8 | CI46: 100% Final | CJ46: Mechanical | CK46: 101 | CL46: 200 | CM46: FALSE | CN46: 2
BK47: 0.35 | BL47: Mechanical | BM47: 201 | BN47: 300 | BO47: FALSE | BP47: 2 | BQ47: 0.65 | BR47: Mechanical | BS47: 201 | BT47: 300 | BU47: FALSE | BV47: 4 | BW47: 0.95 | BX47: Mechanical | BY47: 201 | BZ47: 300 | CA47: FALSE | CB47: 20 | CC47: Resubmit | CD47: Mechanical | CE47: 201 | CF47: 300 | CG47: FALSE | CH47: 10 | CI47: 100% Final | CJ47: Mechanical | CK47: 201 | CL47: 300 | CM47: FALSE | CN47: 2
BK48: 0.35 | BL48: Mechanical | BM48: 301 | BN48: 400 | BO48: FALSE | BP48: 2 | BQ48: 0.65 | BR48: Mechanical | BS48: 301 | BT48: 400 | BU48: FALSE | BV48: 5 | BW48: 0.95 | BX48: Mechanical | BY48: 301 | BZ48: 400 | CA48: FALSE | CB48: 24 | CC48: Resubmit | CD48: Mechanical | CE48: 301 | CF48: 400 | CG48: FALSE | CH48: 12 | CI48: 100% Final | CJ48: Mechanical | CK48: 301 | CL48: 400 | CM48: FALSE | CN48: 2
B49: PART II. TO BE COMPLETED BY QUALITY ASSURANCE STAFF: | BK49: 0.35 | BL49: Mechanical | BM49: 401 | BN49: 500 | BO49: FALSE | BP49: 2 | BQ49: 0.65 | BR49: Mechanical | BS49: 401 | BT49: 500 | BU49: FALSE | BV49: 6 | BW49: 0.95 | BX49: Mechanical | BY49: 401 | BZ49: 500 | CA49: FALSE | CB49: 36 | CC49: Resubmit | CD49: Mechanical | CE49: 401 | CF49: 500 | CG49: FALSE | CH49: 14 | CI49: 100% Final | CJ49: Mechanical | CK49: 401 | CL49: 500 | CM49: FALSE | CN49: 2
BK50: 0.35 | BL50: Mechanical | BM50: 501 | BN50: 1000 | BO50: FALSE | BP50: 2 | BQ50: 0.65 | BR50: Mechanical | BS50: 501 | BT50: 1000 | BU50: FALSE | BV50: 7 | BW50: 0.95 | BX50: Mechanical | BY50: 501 | BZ50: 1000 | CA50: FALSE | CB50: 40 | CC50: Resubmit | CD50: Mechanical | CE50: 501 | CF50: 1000 | CG50: FALSE | CH50: 16 | CI50: 100% Final | CJ50: Mechanical | CK50: 501 | CL50: 1000 | CM50: FALSE | CN50: 2
B51: 14. BCOES Cost Estimate Fee: | BK51: 0.35 | BL51: Electrical | BM51: 0 | BN51: 100 | BO51: =AND($AB$14=BK51,$C$56=BL51,$AP$7>=BM51,$AP$7<=BN51) -> FALSE | BP51: 2 | BQ51: 0.65 | BR51: Electrical | BS51: 0 | BT51: 100 | BU51: =AND($AB$14=BQ51,$C$56=BR51,$AP$7>=BS51,$AP$7<=BT51) -> FALSE | BV51: 2 | BW51: 0.95 | BX51: Electrical | BY51: 0 | BZ51: 100 | CA51: =AND($AB$14=BW51,$C$56=BX51,$AP$7>=BY51,$AP$7<=BZ51) -> FALSE | CB51: 16 | CC51: Resubmit | CD51: Electrical | CE51: 0 | CF51: 100 | CG51: =AND($AB$14=CC51,$C$56=CD51,$AP$7>=CE51,$AP$7<=CF51) -> FALSE | CH51: 6 | CI51: 100% Final | CJ51: Electrical | CK51: 0 | CL51: 100 | CM51: =AND($AB$14=CI51,$C$56=CJ51,$AP$7>=CK51,$AP$7<=CL51) -> TRUE | CN51: 2
BK52: 0.35 | BL52: Electrical | BM52: 101 | BN52: 200 | BO52: FALSE | BP52: 2 | BQ52: 0.65 | BR52: Electrical | BS52: 101 | BT52: 200 | BU52: FALSE | BV52: 3 | BW52: 0.95 | BX52: Electrical | BY52: 101 | BZ52: 200 | CA52: FALSE | CB52: 18 | CC52: Resubmit | CD52: Electrical | CE52: 101 | CF52: 200 | CG52: FALSE | CH52: 8 | CI52: 100% Final | CJ52: Electrical | CK52: 101 | CL52: 200 | CM52: FALSE | CN52: 2
C53: Discipline | H53: Reviewer | P53: Office | T53: Org Code | Z53: Phone | AF53: Hours | AI53: Estimated Cost | AO53: Negotiated Costs | BK53: 0.35 | BL53: Electrical | BM53: 201 | BN53: 300 | BO53: FALSE | BP53: 2 | BQ53: 0.65 | BR53: Electrical | BS53: 201 | BT53: 300 | BU53: FALSE | BV53: 4 | BW53: 0.95 | BX53: Electrical | BY53: 201 | BZ53: 300 | CA53: FALSE | CB53: 20 | CC53: Resubmit | CD53: Electrical | CE53: 201 | CF53: 300 | CG53: FALSE | CH53: 10 | CI53: 100% Final | CJ53: Electrical | CK53: 201 | CL53: 300 | CM53: FALSE | CN53: 2
C54: Field Office | H54: Troy Funk | P54: =IF(C54="Field Office",(VLOOKUP(H54,'Team Info'!A3:F13,3,FALSE))," ") ->  | T54: =IF($C$54="Field Office",VLOOKUP($H$54,'Team Info'!A3:F13,2,FALSE)," ") ->  | Z54: =IF($C$54="Field Office",VLOOKUP($H$54,'Team Info'!A3:F13,2,FALSE)," ") ->  | AF54: =IF(AND($AB$14=$BQ$38,$C$54=$BF$39,$AF$7<10000001),$BV$39,IF(AND($AB$14=$BQ$38,$C$54=$BF$39,$AF$7>=10000001,$AF$7<=20000000)=TRUE,$BV$47,IF(AND($AB$14=$BQ$38,$C$54=$BF$39,$AF$7>=20000001,$AF$7<3000000)=TRUE,BV55))) -> FALSE | BK54: 0.35 | BL54: Electrical | BM54: 301 | BN54: 400 | BO54: FALSE | BP54: 2 | BQ54: 0.65 | BR54: Electrical | BS54: 301 | BT54: 400 | BU54: FALSE | BV54: 5 | BW54: 0.95 | BX54: Electrical | BY54: 301 | BZ54: 400 | CA54: FALSE | CB54: 24 | CC54: Resubmit | CD54: Electrical | CE54: 301 | CF54: 400 | CG54: FALSE | CH54: 12 | CI54: 100% Final | CJ54: Electrical | CK54: 301 | CL54: 400 | CM54: FALSE | CN54: 2
C55: =IF(BE120=TRUE,"Mechanical"," ") -> Mechanical | H55: Matt Kilmer | P55: =IF(C55="Mechanical",(VLOOKUP(H55,'Team Info'!Y3:AD8,3,FALSE))," ") -> K6M1WA0 | T55: =IF($C$55="Mechanical",VLOOKUP($H$55,'Team Info'!$Y$4:$AD$8,2,FALSE)," ") -> Matthew.J.Kilmer@usace.army.mil | Z55: =IF($C$55="Mechanical",VLOOKUP($H$55,'Team Info'!$Y$4:$AD$8,4,FALSE)," ") -> CD-QA | AF55: =IF(BK40=TRUE,BP40,(IF(BQ40=TRUE,BV40,(IF(BW40=TRUE,CB40,(IF(CC40=TRUE,CH40,(IF(CI40=TRUE,CN40,"x"))))))))) -> x | BK55: 0.35 | BL55: Electrical | BM55: 401 | BN55: 500 | BO55: FALSE | BP55: 2 | BQ55: 0.65 | BR55: Electrical | BS55: 401 | BT55: 500 | BU55: FALSE | BV55: 6 | BW55: 0.95 | BX55: Electrical | BY55: 401 | BZ55: 500 | CA55: FALSE | CB55: 36 | CC55: Resubmit | CD55: Electrical | CE55: 401 | CF55: 500 | CG55: FALSE | CH55: 14 | CI55: 100% Final | CJ55: Electrical | CK55: 401 | CL55: 500 | CM55: FALSE | CN55: 2
C56: =IF(BE121=TRUE,"Electrical"," ") -> Electrical | H56: Andy Cox | P56: =IF($C$56="Electrical",VLOOKUP(H56,'Team Info'!S4:X8,3,FALSE)," ") -> K6M1WA0 | T56: =IF($C$56="Electrical",VLOOKUP($H$56,'Team Info'!$S$4:$X$8,2,FALSE)," ") -> Andrew.J.Cox@USACE.army.mil | Z56: =IF($C$56="Electrical",VLOOKUP($H$56,'Team Info'!$S$4:$X$8,4,FALSE)," ") -> CD-QA | AF56: =IF(BK41=TRUE,BP41,(IF(BQ41=TRUE,BV41,(IF(BW41=TRUE,CB41,(IF(CC41=TRUE,CH41,(IF(CI41=TRUE,CN41,"x"))))))))) -> x | BK56: 0.35 | BL56: Electrical | BM56: 501 | BN56: 1000 | BO56: FALSE | BP56: 2 | BQ56: 0.65 | BR56: Electrical | BS56: 501 | BT56: 1000 | BU56: FALSE | BV56: 7 | BW56: 0.95 | BX56: Electrical | BY56: 501 | BZ56: 1000 | CA56: FALSE | CB56: 40 | CC56: Resubmit | CD56: Electrical | CE56: 501 | CF56: 1000 | CG56: FALSE | CH56: 16 | CI56: 100% Final | CJ56: Electrical | CK56: 501 | CL56: 1000 | CM56: FALSE | CN56: 2
C57: =IF(BE122=TRUE,"Civil"," ") -> Civil | H57: Rich Sillin | P57: =IF($C$57="Civil",VLOOKUP(H57,'Team Info'!M4:R8,3,FALSE)," ") ->  | T57: =IF($C$57="Civil",VLOOKUP($H$57,'Team Info'!$M$4:R8,2,FALSE)," ") ->  | Z57: =IF($C$57="Civil",VLOOKUP($H$57,'Team Info'!$M$4:X8,4,FALSE)," ") ->  | AF57: =IF(BK42=TRUE,BP42,(IF(BQ42=TRUE,BV42,(IF(BW42=TRUE,CB42,(IF(CC42=TRUE,CH42,(IF(CI42=TRUE,CN42,"x"))))))))) -> x | BK57: 0.35 | BL57: Civil | BM57: 0 | BN57: 100 | BO57: =AND($AB$14=BK57,$C$57=BL57,$AP$7>=BM57,$AP$7<=BN57) -> FALSE | BP57: 2 | BQ57: 0.65 | BR57: Civil | BS57: 0 | BT57: 100 | BU57: =AND($AB$14=BQ57,$C$57=BR57,$AP$7>=BS57,$AP$7<=BT57) -> FALSE | BV57: 2 | BW57: 0.95 | BX57: Civil | BY57: 0 | BZ57: 100 | CA57: =AND($AB$14=BW57,$C$57=BX57,$AP$7>=BY57,$AP$7<=BZ57) -> FALSE | CB57: 16 | CC57: Resubmit | CD57: Civil | CE57: 0 | CF57: 100 | CG57: =AND($AB$14=CC57,$C$57=CD57,$AP$7>=CE57,$AP$7<=CF57) -> FALSE | CH57: 6 | CI57: 100% Final | CJ57: Civil | CK57: 0 | CL57: 100 | CM57: =AND($AB$14=CI57,$C$57=CJ57,$AP$7>=CK57,$AP$7<=CL57) -> TRUE | CN57: 2
C58: =IF(BE123=TRUE,"Architect"," ") -> Architect | H58: Terry Dismukes | P58: =IF($C$58="Architect",VLOOKUP(H58,'Team Info'!H4:L8,3,FALSE)," ") -> EN-DAS | T58: =IF($C$58="Architect",VLOOKUP($H$58,'Team Info'!$H$4:$L$8,2,FALSE)," ") -> K6L0BN0 | Z58: =IF($C$58="Architect",VLOOKUP($H$58,'Team Info'!$H$4:$L$8,4,FALSE)," ") -> 912-652-5544 | AF58: =IF(BK43=TRUE,BP43,(IF(BQ43=TRUE,BV43,(IF(BW43=TRUE,CB43,(IF(CC43=TRUE,CH43,(IF(CI43=TRUE,CN43,"x"))))))))) -> x | BK58: 0.35 | BL58: Civil | BM58: 101 | BN58: 200 | BO58: FALSE | BP58: 2 | BQ58: 0.65 | BR58: Civil | BS58: 101 | BT58: 200 | BU58: FALSE | BV58: 3 | BW58: 0.95 | BX58: Civil | BY58: 101 | BZ58: 200 | CA58: FALSE | CB58: 18 | CC58: Resubmit | CD58: Civil | CE58: 101 | CF58: 200 | CG58: FALSE | CH58: 8 | CI58: 100% Final | CJ58: Civil | CK58: 101 | CL58: 200 | CM58: FALSE | CN58: 2
C59: =IF(BE124=TRUE,"Structural"," ") -> Structural | P59: =IF($C$59="Structural",VLOOKUP(H59,'Team Info'!Y7:AD12,3,FALSE)," ") ->  | T59: =IF($C$59="Structural",VLOOKUP(H59,'Team Info'!Y8:AD12,2,FALSE)," ") ->  | Z59: =IF($C$59="Structural",VLOOKUP(O59,'Team Info'!AI8:AK12,4,FALSE)," ") ->  | AF59: =IF(BK44=TRUE,BP44,(IF(BQ44=TRUE,BV44,(IF(BW44=TRUE,CB44,(IF(CC44=TRUE,CH44,(IF(CI44=TRUE,CN44,"x"))))))))) -> x | BK59: 0.35 | BL59: Civil | BM59: 201 | BN59: 300 | BO59: FALSE | BP59: 2 | BQ59: 0.65 | BR59: Civil | BS59: 201 | BT59: 300 | BU59: FALSE | BV59: 4 | BW59: 0.95 | BX59: Civil | BY59: 201 | BZ59: 300 | CA59: FALSE | CB59: 20 | CC59: Resubmit | CD59: Civil | CE59: 201 | CF59: 300 | CG59: FALSE | CH59: 10 | CI59: 100% Final | CJ59: Civil | CK59: 201 | CL59: 300 | CM59: FALSE | CN59: 2
C60: Coordination | H60: Rich Sillin | P60: CD-QA | T60: K6M1WA0 | Z60: 912-652-5094 | AF60: 2 | BK60: 0.35 | BL60: Civil | BM60: 301 | BN60: 400 | BO60: FALSE | BP60: 2 | BQ60: 0.65 | BR60: Civil | BS60: 301 | BT60: 400 | BU60: FALSE | BV60: 5 | BW60: 0.95 | BX60: Civil | BY60: 301 | BZ60: 400 | CA60: FALSE | CB60: 24 | CC60: Resubmit | CD60: Civil | CE60: 301 | CF60: 400 | CG60: FALSE | CH60: 12 | CI60: 100% Final | CJ60: Civil | CK60: 301 | CL60: 400 | CM60: FALSE | CN60: 2
AE61: Subtotals: | AF61: =SUM(AF54:AG60) -> 2 | AI61: =SUM(AI55:AM60) -> 0 | AO61: =SUM(AO55:AS60) -> 0 | BK61: 0.35 | BL61: Civil | BM61: 401 | BN61: 500 | BO61: FALSE | BP61: 2 | BQ61: 0.65 | BR61: Civil | BS61: 401 | BT61: 500 | BU61: FALSE | BV61: 6 | BW61: 0.95 | BX61: Civil | BY61: 401 | BZ61: 500 | CA61: FALSE | CB61: 36 | CC61: Resubmit | CD61: Civil | CE61: 401 | CF61: 500 | CG61: FALSE | CH61: 14 | CI61: 100% Final | CJ61: Civil | CK61: 401 | CL61: 500 | CM61: FALSE | CN61: 2
BK62: 0.35 | BL62: Civil | BM62: 501 | BN62: 1000 | BO62: FALSE | BP62: 2 | BQ62: 0.65 | BR62: Civil | BS62: 501 | BT62: 1000 | BU62: FALSE | BV62: 7 | BW62: 0.95 | BX62: Civil | BY62: 501 | BZ62: 1000 | CA62: FALSE | CB62: 40 | CC62: Resubmit | CD62: Civil | CE62: 501 | CF62: 1000 | CG62: FALSE | CH62: 16 | CI62: 100% Final | CJ62: Civil | CK62: 501 | CL62: 1000 | CM62: FALSE | CN62: 2
BK63: 0.35 | BL63: Architect | BM63: 0 | BN63: 100 | BO63: =AND($AB$14=BK63,$C$58=BL63,$AP$7>=BM63,$AP$7<=BN63) -> FALSE | BP63: 2 | BQ63: 0.65 | BR63: Architect | BS63: 0 | BT63: 100 | BU63: =AND($AB$14=BQ63,$C$58=BR63,$AP$7>=BS63,$AP$7<=BT63) -> FALSE | BV63: 2 | BW63: 0.95 | BX63: Architect | BY63: 0 | BZ63: 100 | CA63: =AND($AB$14=BW63,$C$58=BX63,$AP$7>=BY63,$AP$7<=BZ63) -> FALSE | CB63: 16 | CC63: Resubmit | CD63: Architect | CE63: 0 | CF63: 100 | CG63: =AND($AB$14=CC63,$C$58=CD63,$AP$7>=CE63,$AP$7<=CF63) -> FALSE | CH63: 6 | CI63: 100% Final | CJ63: Architect | CK63: 0 | CL63: 100 | CM63: =AND($AB$14=CI63,$C$58=CJ63,$AP$7>=CK63,$AP$7<=CL63) -> TRUE | CN63: 2
BK64: 0.35 | BL64: Architect | BM64: 101 | BN64: 200 | BO64: FALSE | BP64: 2 | BQ64: 0.65 | BR64: Architect | BS64: 101 | BT64: 200 | BU64: FALSE | BV64: 3 | BW64: 0.95 | BX64: Architect | BY64: 101 | BZ64: 200 | CA64: FALSE | CB64: 18 | CC64: Resubmit | CD64: Architect | CE64: 101 | CF64: 200 | CG64: FALSE | CH64: 8 | CI64: 100% Final | CJ64: Architect | CK64: 101 | CL64: 200 | CM64: FALSE | CN64: 2
BK65: 0.35 | BL65: Architect | BM65: 201 | BN65: 300 | BO65: FALSE | BP65: 2 | BQ65: 0.65 | BR65: Architect | BS65: 201 | BT65: 300 | BU65: FALSE | BV65: 4 | BW65: 0.95 | BX65: Architect | BY65: 201 | BZ65: 300 | CA65: FALSE | CB65: 20 | CC65: Resubmit | CD65: Architect | CE65: 201 | CF65: 300 | CG65: FALSE | CH65: 10 | CI65: 100% Final | CJ65: Architect | CK65: 201 | CL65: 300 | CM65: FALSE | CN65: 2
BK66: 0.35 | BL66: Architect | BM66: 301 | BN66: 400 | BO66: FALSE | BP66: 2 | BQ66: 0.65 | BR66: Architect | BS66: 301 | BT66: 400 | BU66: FALSE | BV66: 5 | BW66: 0.95 | BX66: Architect | BY66: 301 | BZ66: 400 | CA66: FALSE | CB66: 24 | CC66: Resubmit | CD66: Architect | CE66: 301 | CF66: 400 | CG66: FALSE | CH66: 12 | CI66: 100% Final | CJ66: Architect | CK66: 301 | CL66: 400 | CM66: FALSE | CN66: 2
BK67: 0.35 | BL67: Architect | BM67: 401 | BN67: 500 | BO67: FALSE | BP67: 2 | BQ67: 0.65 | BR67: Architect | BS67: 401 | BT67: 500 | BU67: FALSE | BV67: 6 | BW67: 0.95 | BX67: Architect | BY67: 401 | BZ67: 500 | CA67: FALSE | CB67: 36 | CC67: Resubmit | CD67: Architect | CE67: 401 | CF67: 500 | CG67: FALSE | CH67: 14 | CI67: 100% Final | CJ67: Architect | CK67: 401 | CL67: 500 | CM67: FALSE | CN67: 2
BK68: 0.35 | BL68: Architect | BM68: 501 | BN68: 1000 | BO68: FALSE | BP68: 2 | BQ68: 0.65 | BR68: Architect | BS68: 501 | BT68: 1000 | BU68: FALSE | BV68: 7 | BW68: 0.95 | BX68: Architect | BY68: 501 | BZ68: 1000 | CA68: FALSE | CB68: 40 | CC68: Resubmit | CD68: Architect | CE68: 501 | CF68: 1000 | CG68: FALSE | CH68: 16 | CI68: 100% Final | CJ68: Architect | CK68: 501 | CL68: 1000 | CM68: FALSE | CN68: 2
BK69: 0.35 | BL69: Structural | BM69: 0 | BN69: 100 | BO69: =AND($AB$14=BK69,$C$59=BL69,$AP$7>=BM69,$AP$7<=BN69) -> FALSE | BP69: 2 | BQ69: 0.65 | BR69: Structural | BS69: 0 | BT69: 100 | BU69: =AND($AB$14=BQ69,$C$59=BR69,$AP$7>=BS69,$AP$7<=BT69) -> FALSE | BV69: 2 | BW69: 0.95 | BX69: Structural | BY69: 0 | BZ69: 100 | CA69: =AND($AB$14=BW69,$C$59=BX69,$AP$7>=BY69,$AP$7<=BZ69) -> FALSE | CB69: 16 | CC69: Resubmit | CD69: Structural | CE69: 0 | CF69: 100 | CG69: =AND($AB$14=CC69,$C$59=CD69,$AP$7>=CE69,$AP$7<=CF69) -> FALSE | CH69: 6 | CI69: 100% Final | CJ69: Structural | CK69: 0 | CL69: 100 | CM69: =AND($AB$14=CI69,$C$59=CJ69,$AP$7>=CK69,$AP$7<=CL69) -> TRUE | CN69: 2
BK70: 0.35 | BL70: Structural | BM70: 101 | BN70: 200 | BO70: FALSE | BP70: 2 | BQ70: 0.65 | BR70: Structural | BS70: 101 | BT70: 200 | BU70: FALSE | BV70: 3 | BW70: 0.95 | BX70: Structural | BY70: 101 | BZ70: 200 | CA70: FALSE | CB70: 18 | CC70: Resubmit | CD70: Structural | CE70: 101 | CF70: 200 | CG70: FALSE | CH70: 8 | CI70: 100% Final | CJ70: Structural | CK70: 101 | CL70: 200 | CM70: FALSE | CN70: 2
BK71: 0.35 | BL71: Structural | BM71: 201 | BN71: 300 | BO71: FALSE | BP71: 2 | BQ71: 0.65 | BR71: Structural | BS71: 201 | BT71: 300 | BU71: FALSE | BV71: 4 | BW71: 0.95 | BX71: Structural | BY71: 201 | BZ71: 300 | CA71: FALSE | CB71: 20 | CC71: Resubmit | CD71: Structural | CE71: 201 | CF71: 300 | CG71: FALSE | CH71: 10 | CI71: 100% Final | CJ71: Structural | CK71: 201 | CL71: 300 | CM71: FALSE | CN71: 2
BK72: 0.35 | BL72: Structural | BM72: 301 | BN72: 400 | BO72: FALSE | BP72: 2 | BQ72: 0.65 | BR72: Structural | BS72: 301 | BT72: 400 | BU72: FALSE | BV72: 5 | BW72: 0.95 | BX72: Structural | BY72: 301 | BZ72: 400 | CA72: FALSE | CB72: 24 | CC72: Resubmit | CD72: Structural | CE72: 301 | CF72: 400 | CG72: FALSE | CH72: 12 | CI72: 100% Final | CJ72: Structural | CK72: 301 | CL72: 400 | CM72: FALSE | CN72: 2
BK73: 0.35 | BL73: Structural | BM73: 401 | BN73: 500 | BO73: FALSE | BP73: 2 | BQ73: 0.65 | BR73: Structural | BS73: 401 | BT73: 500 | BU73: FALSE | BV73: 6 | BW73: 0.95 | BX73: Structural | BY73: 401 | BZ73: 500 | CA73: FALSE | CB73: 36 | CC73: Resubmit | CD73: Structural | CE73: 401 | CF73: 500 | CG73: FALSE | CH73: 14 | CI73: 100% Final | CJ73: Structural | CK73: 401 | CL73: 500 | CM73: FALSE | CN73: 2
BK74: 0.35 | BL74: Structural | BM74: 501 | BN74: 1000 | BO74: FALSE | BP74: 2 | BQ74: 0.65 | BR74: Structural | BS74: 501 | BT74: 1000 | BU74: FALSE | BV74: 7 | BW74: 0.95 | BX74: Structural | BY74: 501 | BZ74: 1000 | CA74: FALSE | CB74: 40 | CC74: Resubmit | CD74: Structural | CE74: 501 | CF74: 1000 | CG74: FALSE | CH74: 16 | CI74: 100% Final | CJ74: Structural | CK74: 501 | CL74: 1000 | CM74: FALSE | CN74: 2
BE120: TRUE | BF120: Mechanical | BW120: Review Level | CB120: Field Office | CC120: Mechanical | CH120: Electrical | CI120: Civil | CN120: Architect
BE121: TRUE | BF121: Electrical | BW121: 0.35 | CB121: 2
BE122: TRUE | BF122: Civil | BW122: 0.65 | CB122: 4 | CC122: 1 | CH122: 1 | CI122: 1 | CN122: 1
BE123: TRUE | BF123: Architect | BW123: 0.95 | CB123: 24
BE124: TRUE | BF124: Structural | BW124: Resubmit
BE125: TRUE | BF125: Other | BK125: Plan Dist | BW125: 100% Final
BE126: FALSE | BF126: RMRDEC | BK126: 25
BE127: FALSE | BF127: ProNet
BE128: FALSE | BF128: H: Drive
BE129: FALSE | BF129: CD Disk | BK129: 50
BE130: FALSE | BF130: Design-Build
BE131: FALSE | BF131: Design-Bid-Build
BE132: FALSE | BF132: Design-Bid-Build AE
BE133: FALSE | BF133: RFP
BE135: FALSE | BF135: RFP COS
BE137: FALSE | BF137: RFP AE
BE138: FALSE | BF138: Non-Awardable Package
BE139: FALSE | BF139: Excessive Bidder RFI
BE140: TRUE | BF140: Compressed Schedule
BE142: FALSE | BF142: Overtime Time Required
BE143: FALSE | BF143: Conference Over 2 Hours

Sheet Project EX Input (hidden)
A1: PEER | B1: Code | C1: INST | D1: ORG | E1: PROJECTNAME | F1: PN | G1: Fund | H1: YR | I1: Lock-in | J1: PM | K1: CS/KO | L1: PA | M1: RTA | N1: Adv | O1: AWARDED | P1: OBLDT | Q1: TIER | R1: LEEDSPIRIT | S1: PROJSTATUS | T1: CMR | U1: OPSTATUS | V1: PM | W1: CONSTR_PCT_COMPLETE | X1: Projected Award | Y1: COMMENTS | Z1: DATAASOF | AA1: BCOES
A2: N | B2: A | C2: Stewart | E2: MP Station | F2: 81303 | G2: UMMCA | H2: 14 | I2: N/A | J2: Hill | K2: Wampler / Arnett | L2: 2000000 | M2: 6/6/2016 (A) | N2: 6/30/16 (A) | X2: 2016-08-26 | Y2: D-B-B NC MATOC (SB); Code 6 authorization received by Directive dated 6 Nov 15. RFP for A-E mod to incorporate scope reductions issued 3 Nov 15. A-E Fee Proposal received 17 Nov 15. Negotiations completed 7 Dec 15. P&D Funds requested 10 Dec 15. Received funds by FAD dated 14 Dec 15. Awarded A-E mod on 30 Dec 15. Revised floor plan incorporating charrette scope reductions provided for review on 20 Jan 16. Revised final received 11 Mar 16. Review conference held 13 Apr. Corrected final received 2 May. BCOES approved 6 Jun 16. Requested Code A on 9 Jun. Received Code A by Directive dated 15 Jun. Site Visit held for 21 Jul. Proposals due 11 Aug at 1400 EST. | AA2: BCOES approved 6 Jun 16
A3: N | B3: A | C3: Bragg | E3: Water Source Heat Pumps, Cooling Tower | F3: 87500 | G3: ECIP | H3: 15 | I3: 2016-04-29 | J3: Comeaux | K3: Wampler / Arnett | L3: 1850000 | M3: 2016-08-15 | N3: 2016-08-22 | X3: 2016-09-30 | Y3: DB Mech MATOC; RFP prep by SAM. LATE START. Code A received by Directive dated 20 Nov. RFP issued 16 Dec. Received significant RFIs from DPW on week of 11 Jan 16. Conference call with Designer and DPW held 14 Jan 16. Revision to RFP addressing late comments issued 21 Jan. Proposals received 28 Jan. Prices exceed IGE. SAM updated IGE per changes incorporated into the RFP by last amendment. Revised (SIR) received 26 Feb does not support ECIP award. Conference call with Bragg DPW held 5 Apr. DPW reviewing SIR calculation & considering energy upgrades for another building. Conducted Info Gathering calls with Contractors week of 25 Apr 16. Cost cutting recommendations provided to DPW on 13 May. Conference call with DPW held 24 May. Follow-Up conference call held 7 Jun. Received DPW approval of cost cutting recommendations and identification of Bldg 2-1105 as swing space by Ayala e-mail dated 15 Jun. Requested funds to revise RFP on 30 Jun. Rec'd P&D on 6 Jun. Site Visit scheduled for 26 Jul. Revised RFP due 1 Aug. Need CG approval to schedule award in Sep.
A4: Y | B4: A | C4: Stewart | E4: SOF Company Ops Facility | F4: 57442 | G4: SOF | H4: 15 | I4: 2016-09-15 | J4: Hill | K4: Oliver / Crow | L4: 7692000 | M4: 2/26/16 (A) | N4: 7/22/16 (A) | X4: 2016-09-30 | Y4: DB "C" Type (SB) 2-Step RFP. SAS to procure funiture by Supply Contract upon completion of CID by Contractor. Requested Code A on 7 Jan. Code A received by Directive dated 15 Jan 16. Received OC/CT comments on SSP 19 Jan 16. Final RFP documents for Step 2 received on 26 Jan. Revised SSP to CT on 29 Jan 16. OC approved SSP on 22 Feb. Peer review slipped from 7 Mar to week of 21 Mar. Step 1 advertised 24 Mar and proposals received 26 Apr. Step 1 SSEB convened 2 May 16. Evaluations by SSEB completed 13 May. SSEB report to CT 24 May. Quick Review by KO completed 31 May. Revised SSEB to CT on 6 Jun. SSEB Report returned to PM with minor comments on 14 Jun. Revised SSEB Report to CT on 15 Jun. OC comments received 23 Jun. Revised report by PM to CT on 30 Jun. PDT "Page-Turner" held 11 Jul. "Page-Turner" held with OC on 15 Jul. Step 2 issued 22 Jul. PM provided revised Section 00100 to CT and CD for review on 25 Jul. Site Visit schedule for 8 Aug @ 1000. Proposals due 22 Aug @ 1400. SSEB scheduled for 24 - 26 Aug.
A5: N | B5: A | C5: Stewart | E5: CIDC Field Operations Building | F5: 86787 | G5: UMMCA | H5: 15 | I5: N/A | J5: Hill | K5: North / Crow | L5: 2000000 | M5: 6/30/16 (A) | N5: 2016-07-26 | X5: 2016-09-21 | Y5: D-B-B 8a Match; Design by SAS. Charrette held 24 Sep 15. Customer approved charrette floor plan on 30 Oct 15. Concept submittal issued for review on 10 Dec 15. Review conference held 17 Dec 15. Final submittal received 2 May. Review conf held 2 Jun. User Request to revise roof design. Corr. Final due 7 Jul. PDT meeting to discuss advance advertisement held 30 Jun. Conditional BCOES signed 30 Jun. Requested Code A 30 Jun. Corrected Final mailed 8 Jul for review. Brett Wiliford and Victoria Read will be assigned to negotiate from CD-STH. Received Code A by Directive dated 14 Jul 16. | AA5: Conditional BCOES signed 30 Jun
A6: N | B6: A | C6: Gordon | E6: Command and Control Facility | F6: 85811 | G6: MCA | H6: 16 | I6: N/A | J6: Puhalla | K6: Page/LTC Lee | L6: 90000000 | M6: 12/31/15 (A) | N6: 2/12/16 (A) | X6: 2016-08-30 | Y6: D-B-B "C" Type 2 Step Sealed Bid. Design by A-E. Final submittal received 5 Oct. Review conference completed 3 thru 5 Nov at Gordon. Final received 18 Dec. Consolidation Memo approved by HQUSACE on 14 Jan 16. Step 1 solicitation to PARC for review and approval on 19 Jan 16. Conference call with PARC completed 11 Feb 16. Step 1 issued on 12 Feb 16 and proposals received 14 Mar 16. Advertised Step 2 on 17 May. Site Visit held for 1 Jun. Bids opened 22 Jul @1400. PM to request funds and award authorization upon validation of bids by CT. | AA6: BCOES????
A7: N | B7: A | C7: Moody | E7: Replace Truck Fill Stand | F7: DESC1710 | G7: DLA | H7: 16 | I7: 2016-08-30 | J7: Grandison | K7: Thompson/ Crow | L7: 10900000 | M7: 12/31/15 (A) | N7: 6/15/2016 (A) | X7: 2016-08-30 | Y7: D-B-B, "C" Type LPTA (UR); Design by NWO. Final submittal received 10 Aug 15. Review conference postponed to 20 Oct 15 at Customer's request. Corrected Final received 4 Dec 15. PM received estimate and DRAFT 1354 on 8 Feb. Code A requested 16 Feb. Per latest discussions with DLA this project will remain in the FY-16 program. Pre-Solicitation meeting with PDT held 7 Mar 16. Advance notice issued 30 Mar. Conf call with DLA to discuss LPTA process held 3 May at 1300. SSP forwarded to OC on 12 May and approved 20 May. Approved SSP forwarded to DLA on 20 May. Code A received by Directive dated 27 May. Solicitation W912HN-16-R-0015 issued 15 Jun, proposals due date of 26 Jul revised by amendment 004 to 9 Aug due to large number of RFI's. LPTA Eval scheduled for 2 Aug tenatively rescheduled 22 Aug @ 1300. | AA7: BCOES Completed 10-Feb-2016
A8: N | B8: A | C8: Seymour Johnson | E8: Air Traffic Control Tower/Base Operations Complex | F8: VKAG013004R5 | G8: MCAF | H8: 16 | I8: 2016-08-30 | J8: Harrell | K8: Thompson/ Crow | L8: 17100000 | M8: 2016-08-17 | N8: 2016-08-12 | X8: 2016-09-30 | Y8: D-B-B, "C" Type LPTA (UR); Design by A-E. Received P&D funds to exercise option for 65% design submittal on 26 Oct 15. CT awarded option on 2 Nov 15. 65% Kick-Off at Seymour on 17 - 18 Nov. Base approval of revised concept floor plan received 7 Dec 15. 65% submittal received 5 Feb 16. Review conference held 7 Mar. AFCEC authority to exercise final design option received 11 Apr 16. Final submittal received 27 Jun 16. PDT meeting to discuss advance advertisement held 6 Jul. Requested authority to advertise and pre-positioning of funds by Harrell e-mail dated 6 Jul. Authority to Advertise received by AFCEC memo dated 14 Jul. Review conf. held 19 Jul. Sources Sought responses received 19 Jul. Advance notice issued 22 Jul. Corrected Final due 11 Aug. SSP to CT for review 24 Jun. | AA8: No longer in Dr. Checks. Email Traffic to 20Jul2016. Appears BCOES Complete.
A9: N | B9: A | C9: Robins | E9: Airfield Fence & Gates | F9: UHHZ110323W | G9: UMMCAF | H9: 16 | I9: N/A | J9: Harrell | K9: Arnett | L9: 1900000 | M9: 2/29/16 (A) | N9: 4/28/16 (A) | X9: 2016-08-31 | Y9: D-B, SATOC (Komada); Received P&D funds and DI on 29 Oct. Scope of Work by CD-RO recevied 22 Feb 16. PM requested Code A 22 Feb 16. Code A received by AFCEC memo dated 26 Apr. Proposal due date of 11 May postponed to 14 Jun, received 20 Jun. CD-RO preparing POM.
A10: N | B10: A | C10: Rucker | E10: Replace Rucker ES/PS | F10: AM00048 | G10: DoDEA | H10: 16 | I10: 2016-06-30 | J10: Lourdes | K10: Oliver/ Crow | L10: 46787000 | M10: 10/8/2015 (A) | N10: 12/23/2015 (A) | X10: 2016-12-30 | Y10: D-B-B, SAM MATOC (UR); Design by A-E. BCOES approved 8 Oct. Requested authority to advertise 7 Oct. Received Code A by Directive dated 1 Dec 15. Issued solicitation on 23 Dec 15. Proposals received 7 Mar 16. PM to coordinate transfer of KO authority to SAM after award of Task Order. Proposals are over PA; fact finding session held on 15 Mar 2016 with contractors in an attempt to bring proposal within an awardable range. PDT to discuss cost reducing recommendations. Contractor's cost cutting proposals received 25 Mar. PDT call held 6 Apr. Teleconf with DoDEA HQs held 26 Apr. A-E preparing revision incorporating approved cost cutting measures. Revision from A-E due 6 May. Revision issued on 12 May. Revised proposals received 8 Jun. Additional Information Gathering calls with the Contractors held 15 Jun. Congressional reprogramming required, award lukely Jan 2017. ATR package to DoDEA HQs on 22 Jun. ATR memo for HQUSACE provided 15 Jul as requested. Requesting CG approval for FY17 award | AA10: FY17 - Ft Rucker - No BCOES??? Who did the BCOES???
A11: N | B11: 6 | C11: Bragg | E11: Replace Butner ES | F11: AM00045 | G11: DoDEA | H11: 16 | I11: 2016-08-30 | J11: Peralta | K11: North/ Crow | L11: 32944000 | M11: 2016-08-30 | N11: 2016-09-13 | X11: 2016-11-28 | Y11: D-B-B, "C" Type LPTA (UR); Design by A-E. NAO awarded A-E mod to revise concept submittal on 20 Aug 15. DoDEA approved revised concept in Sep 15. 65% submittal received on 7 Dec 15. Review conference held 5 thru 7 Jan 16. Final submittal received 8 Mar 16. Review conference to be held 23 thru 25 Mar. Resubmittal of final design required, originally due 6 Jun 16, received 15 Jul. Issued Advance Notice on 15 Jul. SSP in OC under review. Review conf. sch'd for 26 Jul slipped to 3 Aug. Corrected Final due 18 Aug. PDT does not recommend advance advertisement of Corrected Final documents. | AA11: BCOES Closed 22-Jul-2016.
A12: Y | B12: A | C12: Jackson | E12: Replace Pierce Terrace ES | F12: AM00035 | G12: DoDEA | H12: 16 | I12: 2016-08-30 | J12: Peralta | K12: Page/ Crow | L12: 26157000 | M12: 8/28/15 (A) | N12: 3/14/16 (A) | X12: 2016-12-30 | Y12: D-B, "C" Type (UR); Design by A-E. Step 1 solicitation issued 7 Oct 15. Proposals received 10 Nov. Step 1 SSEB held 1 thru 4 Dec. Board report to CT on 11 Dec. Revised report per CT and OC comments to CT 4 Jan 16. Additional comments received and revised report furnished to CT on 21 Jan 16. "Page Turner" Review of Phase I Board Report with CT, OC and PM completed 23 Feb 16. Revised SSEB signature page provided to CT on 26 Feb. Issued Step 2 on 14 Mar 16. Proposals received 12 May. Tech review held 31 May - 9 Jun. SSEB held 13 - 17 Jun. PM to complete SSEB report and forward to CT by 27 Jul. Congressional reprogramming required, award likely Dec 2016. Provided ATR memo for HQUSACE 15 Jul 16. Requesting CG approval for FY17 award. | AA12: BCOES Completed 12-Jun-2016
A13: N | B13: A | C13: Maxwell | E13: Replace/Renovate Maxwell ES/MS | F13: AM00110 | G13: DoDEA | H13: 16 | I13: 2015-06-30 | J13: Lourdes | K13: SAM | L13: 32968000 | M13: 10/8/15 (A) | N13: 12/15/15 (A) | X13: 2016-12-30 | Y13: D-B-B, SAM MATOC (UR); Design by A-E. Requested authority to advertise on 15 Oct. Received code A by Directive dated 1 Dec. SAM issued solicitation on 15 Dec 15. Second Site Visit requested by Contractors held 20 Jan 16. Proposal received 1 Mar 16. Awaiting abstract of proposals to request funds and Code A. Proposals are over PA; fact finding session held on 21 Mar 2016 with contractors in an attempt to bring proposal within an awardable range. Contractor's cost cutting proposals received 1 Apr. PDT discussed cost cutting recommendations 14 Apr and received approval to proceed with approved revisions on 4 May. A-E revised documents for re-pricing received 20 May and submitted to DDESS for approval. SAM issued revision for repricing 29 Jun, proposals received 22 Jul. SAM will award task order. Congressional reprogramming will be required. PM prepared ATR memo to front office 25 Jul. CG approved FY-17 award. | AA13: FY16 Maxwell. Who did the BCOES???
A14: N | B14: 6 | C14: Gordon | E14: SCIF (Cyber CoE Battle Lab) | F14: 87627 | G14: UMMCA | H14: 16 | J14: Kerkhoff | K14: TBD | L14: 2550000 | M14: 2017-02-15 | N14: 2017-02-28 | X14: 2017-05-09 | Y14: D-B-B MATOC (SB): Initial design authorization, Code 6, received by Directive dated 21 Jan 16. Design by Mason & Hanger. P&D funds received 18 Feb. RFP for design task order issued 25 May with proposals rec'd 9 Jun. Negotiations sch'd for 11 Jul. A-E task order award sch'd for 27 Jul. | AA14: Under Design
A15: N | B15: 6 | C15: Benning | E15: Maneuver / Training Area Heavy Forces | F15: 87980 | G15: UMMCA | H15: 16 | J15: Grandison | K15: TBD | L15: 2850000 | M15: 2016-11-07 | N15: 2016-11-18 | X15: 2017-02-28 | Y15: D-B-B MATOC (SB): Initial design authorization, Code 6, received by Directive dated 16 Mar 16. EN unavailable to start design effort at this time. PM proceeding with A-E contract action. P&D funds requested 25 Mar, received 4 Apr. AE SOW to EN on 15 Apr and issued on 12 May. A-E Site Visit held 31 May. Fee proposal received 3 Jun. Negotiations completed 18 Jul. PM requested design funds on 25 Jul. | AA15: Under Design
A16: N | B16: 6 | C16: Stewart | E16: Support / Maintenance Warehouse | F16: 88047 | G16: UMMCA | H16: 16 | J16: Hill | K16: TBD | L16: 3000000 | M16: 2017-03-15 | N16: 2017-03-29 | X16: 2017-06-09 | Y16: D-B-B MATOC (SB): Design by SAS. Initial design authorization, Code 6, received by Directive dated 16 Mar 16. PM coordinating acquisition strategy for design. P&D funds received week of 28 Mar. In-House design kick-off held 16 Jun. Floor plan submittal mailed out 8 Jul. Customer approved layout during meeting held 15 Jul. 35% Concept Submittal mail out 30 Aug. | AA16: Under Design
A17: N | B17: 6 | C17: Gordon | E17: Administrative Building, General Purpose | F17: 89734 | G17: UMMCA | H17: 16 | J17: Cady | K17: TBD | L17: 2300000 | M17: 2016-07-29 | N17: 2016-08-01 | X17: 2016-09-15 | Y17: D-B-B 8a Sole Source: Design by SAS-CD. Initial design authorization received by Directive dated 8 Jul 16. Nomination letter for Teya Services, LLC pending SBA approval. Design funds and Pre-Award funds received 12 Jul. Final due 20 Jul. | AA17: BCOES???
A18: N | B18: A | C18: Stewart | E18: VFD Drives in HVAC Systems | F18: 85960 | G18: ECIP | H18: 16 | I18: 2016-07-30 | J18: Comeaux | K18: Arnett | L18: 1600000 | M18: 12/31/15 (A) | N18: 5/12/16 (A) | X18: 7/15/16 (A) | Y18: D-B Mech MATOC; RFP prep by SAS. Lock-in award date is 30 Jul 16. Awarded contract to Haire Plumbing & Mechanical Co., Inc. on 15 Jul 16 in amount of $1,598,735. Awarded Base Bid only. | AA18: No BCOES done.
A20: FY-16 MILCON ROLL-UP
D21: Design in Progress | E21: Design in Progress | F21: OTHER FY-16 & Prior Under Design | L21: =L5+L8+L11+L14+L15+L16+L17 -> 62744000 | M21: 7 | N21: Contract Actions
D22: Advertised | E22: Advertised | F22: OTHER FY-16 & Prior Advertised | L22: =L2+L4+L7 -> 20592000 | M22: 3 | N22: Contract Actions
D23: Evaluating proposals | E23: Evaluating proposals | F23: OTHER FY-16 & Prior Proposals Rec'd & Eval in Prog | L23: =L3+L6+L9 -> 93750000 | M23: 3 | N23: Contract Actions
D24: Discussions in progress | E24: Discussions in progress | F24: OTHER FY-16 & Prior In Discussions | L24: 0 | M24: 0 | N24: Contract Actions
D25: Funds and Code 9 req. | E25: Funds and Code 9 req. | F25: OTHER FY-16 & Prior Awaiting funds and Code 9 | L25: 0 | M25: 0 | N25: Contract Actions
D26: Award in Progress | E26: Award in Progress | F26: OTHER FY-16 & Prior Ready To Award | L26: 0 | M26: 0 | N26: Contract Actions
D27: Reprogramming action required | E27: Reprogramming action required | F27: OTHER FY-16 & Prior Under Congressional Reprog | L27: =L10+L12+L13 -> 105912000 | M27: 3 | N27: Contract Actions
D28: Awarded | E28: Awarded | F28: OTHER FY-16 & Prior Awarded | L28: =L18 -> 1600000 | M28: 1 | N28: Contract Actions
I29: TOTAL | L29: =SUM(L21:L28) -> 284598000 | M29: =SUM(M21:M28) -> 17 | N29: Contract Actions
A31: N | C31: Benning | E31: Blg 2761 TBUP | G31: SRM | H31: 16 | I31: NA | J31: Reinhardt | K31: Thompson/ Crow | L31: 22000000 | M31: 2016-08-04 | N31: 2016-08-11 | X31: 2016-09-30 | Y31: D-B MATOC (SAM MATOC) IH SAS RFP. Project slipped to FY-17 and back to FY-16. Received design funds for RFP development on 24 Feb. Kick-Off meeting at Benning held 12 Apr. DRAFT submittal received 20 May. Capacity in amount of $22M reserved under W91278-16-D-0031 per Achord e-mail dated 6 Jun. Final received 24 Jun. Corrected Final received 7 Jul. BCOES review underway. | AA31: BCOES Underway
A32: N | C32: Benning | E32: Blg 3105 TBUP | G32: SRM | H32: 16 | I32: NA | J32: Reinhardt | K32: Thompson/ Crow | L32: 33000000 | M32: 2016-08-05 | N32: 2016-08-10 | X32: 2016-09-16 | Y32: D-B MATOC (SAM MATOC). AE RFP. Project slipped to FY-17 and back to FY-16. Received design funds for RFP development on 24 Feb. A-E Option awarded 18 Mar. Kick-Off meeting scheduled for 9 May. RFP kick-off 9 - 12 May at Benning. Capacity in amount of $33M reserved under W91278-16-D-0031 per Achord e-mail dated 6 Jun. Final RFP Submittal received 15 Jul. BCOES underway. | AA32: BCOES Underway
A33: N | C33: Benning | E33: Ranger Barracks 2937, 2938, 2939 | G33: SRM | H33: 16 | I33: NA | J33: Reinhardt | L33: 10500000 | M33: 2016-08-02 | N33: 2016-08-05 | X33: 2016-09-06 | Y33: D-B-B MATOC (BE MATOC). Advertised in FY14 then again by MICC with partial award in in FY15. Design by AE complete - requires minor admin update for new advertisement. P&D for A-E mod to update plans and specs received week of 11 Apr. Pre-Award funds received for socilitation effort. SOW for AE mod to CT on 18 Apr. A-E proposal received 15 May. Negotiations completed 7 Jun. A-E mod awarded 3 Jun. Kick-Off meeting held 27 - 28 Jun. Final due 2 Aug. Will advertise the final documents. This FY16 action is to award remaining barracks. Task Order limit is $10M. | AA33: BCOES???
A34: N | C34: Benning | E34: Ranger Barracks 2936, 2940 | G34: SRM | H34: 16 | I34: NA | J34: Reinhardt | L34: 7000000 | M34: 2016-08-02 | N34: 2016-08-05 | X34: 2016-09-06 | Y34: D-B-B MATOC (NC MATOC). Advertised in FY14 then again by MICC with partial award in in FY15. Design by AE complete - requires minor admin update for new advertisement. P&D for A-E mod to update plans and specs received week of 11 Apr. SOW for AE mod to CT on 18 Apr. A-E proposal received 15 May. Negotiations completed 7 Jun. A-E mod awarded 3 Jun. Kick-Off meeting held 27 - 28 Jun. Final due 2 Aug. Pre-Award funds received for socilitation effort. Will advertise the final documents. This FY16 action is to award remaining barracks. Task Order limit is $5M. | AA34: BCOES???
A35: N | B35: NA | C35: Gordon | E35: Winship Hall Repair, Bldg. 29718 | F35: 86038 | G35: SRM | H35: 16 | I35: NA | J35: Kerkhoff | K35: Thompson / Crow | L35: 14300000 | M35: 2016-07-20 | N35: 2016-07-27 | X35: 2016-09-15 | Y35: D-B-B (SAM MATOC (SB)). Design by A-E. Charrette held 15 - 17 Sep. 35% submittal received 11 Dec. Review conf and VE Workshop held 12 - 14 Jan. VE Report #2 underway. 65% submittal received 26 Feb. Review conf. held 16 Mar. Final received 26 Apr. Review conf. held 17 May. Backcheck submittal received 3 Jun. Capacity in amount of $14.3M reserved under W91278-16-D-0031 per Achord e-mail dated 6 Jun. Solicitation plans and specs due 11 Jul. BCOES review comments due 20 Jul. CT preparing the 2579 and In-Scope Determination. PM preparing bid schedule. | AA35: BCOES Complete 20-Jul-2016
A36: N | B36: NA | C36: Gordon | E36: Cyber CoE RLB Swing Space | F36: ST-06141-6P | G36: OPA/SRM | H36: 16 | I36: NA | J36: Kerkhoff | L36: 6500000 | M36: 2016-07-26 | N36: 2016-08-01 | X36: 2016-09-21 | Y36: D-B 8a Match (Supply). Salient Features package by SAS. Review conference held 13-14 Jun. Base Bid will be 35K building with options up to 6 classrooms. Furniture procurement not required, Customer will re-use existing furniture. Final salient features package mailed out 8 Jul. Review conference tentatively scheduled for 19 Jul. Review conference on hold until further notice. OPA funding unlikely in FY16; Cyber CoE may cancel this project. Project placed on hold. | AA36: No BCOES???
A37: N | B37: NA | C37: Bragg | E37: Repair TBUP Bldg. D-3026 | F37: FA-11601-3P | G37: SRM | H37: 16 | I37: NA | J37: Leyva-Colon | K37: Thompson / Crow | L37: 5000000 | M37: 7/29/15 (A) | N37: 7/18/16 (A) | O37: TBD | P37: TBD | Q37: TBD | R37: TBD | S37: TBD | T37: TBD | U37: TBD | V37: TBD | W37: TBD | X37: 2016-09-16 | Y37: D-B SAM MATOC. Pre-Award funds in amount of $38,759 received by MIPR dated 10 Feb. Deleted as Seed for Bragg MATOC and requested capacity on SAM MATOC due to concerns with completing Step 1 down select. $5M in capacity reserved under W16278-16-D-0022 per Achord e-mail dated 6 Jun. Proposals due 15 Aug. SSEB tentatively scheduled for week of 15 Aug. | AA37: No BCOES???
A38: N | B38: NA | C38: Bragg | E38: Renovate Pope Fire Station | F38: FA-11006-3P | G38: SRM | H38: 16 | I38: NA | J38: Leyva-Colon | K38: Cook / Arnette | L38: 5000000 | M38: 6/30/16 (A) | N38: 2016-07-27 | O38: ???? | P38: ???? | Q38: ???? | R38: ???? | S38: ???? | T38: ???? | U38: ???? | V38: ???? | W38: ???? | X38: 2016-09-20 | Y38: D-B-B MATOC (NC MATOC). Pre-Award funds in amount of $38,759 received by MIPR dated 12 Jan. Designed by A-E (Zapata). PM coordinating advertisement schedule with CT. Received guidance from DPW on 30 Jun to proceed without 1391. CT investigating In-Scope Determination for required temporary facilities. PM coordinating BCOES certificate which required prior to Bid opening. | AA38: BCOES???
A39: N | B39: NA | C39: Bragg | E39: Renovate Volar Barracks 4445,4350, 5784, 5117, & 5122 | F39: FA-11312-9P | G39: SRM | H39: 16 | I39: NA | J39: Leyva-Colon | K39: Oliver / Arnette | L39: 25000000 | M39: 7/29/15 (A) | N39: 7/25/16 (A) | O39: ???? | P39: ???? | Q39: ???? | R39: ???? | S39: ???? | T39: ???? | U39: ???? | V39: ???? | W39: ???? | X39: 2016-09-19 | Y39: D-B-B MATOC (SAM MATOC). Pre-Award funds in amount of $38,759 received by MIPR dated (date?). Designed by I-H. $25M in capacity reserved under W16278-16-D-0031 per Achord e-mail dated 6 Jun. Site Visit scheduled for 25 Jul. Proposals due 25 Aug. Base Bid with four (4) options | AA39: BCOES???
A40: N | B40: NA | C40: Robins | E40: DLA Renovation of Vairous Buildings Phase II | F40: ??? | G40: SRM | H40: 16 | I40: NA | J40: Comeaux | K40: Thompson / Crow | L40: 5526722 | M40: 2016-07-20 | N40: 2016-07-22 | O40: ???? | P40: ???? | Q40: ???? | R40: ???? | S40: ???? | T40: ???? | U40: ???? | V40: ???? | W40: ???? | X40: 2016-08-30 | Y40: D-B MATOC (SAM MATOC). Pre-Award funds in District. RFP by SAS. $8M in capacity reserved under W16278-16-D-0013 per Achord e-mail dated 6 Jun. Awaiting reciept of AF332 from Robins BCE, due week of 18 Jul. PM staffing BCOES certificate. PM coordinating advertisement schedule with CT. Construction funds received ($5,416,301.57) by MIPRs dated 21 Jun. | AA40: BCOES???
A41: N | B41: NA | C41: Gordon | E41: NCOA Bks HVAC Repair | F41: PN 78045 (Bldg 24404) PN 78043 (Bldg 24407) | G41: SRM | H41: 17 | I41: NA | J41: Cady | K41: Oliver/ Crow | L41: 7000000 | M41: 2016-07-01 | N41: FY-17 | X41: FY-17 | Y41: D-B-B (Benning MATOC): Design by A-E. Charrette held. Concept design rec'd 12 Nov 15. 35% review conf. and VE presentation completed 14 Dec. 65% submittal delayed to incorporate VE proposals, received 4 Mar 16. Review conference held 22 Mar. Over-The Shoulder Review of Fan Coil design held 21 Apr. Final design submittal received 12 May, review conf held 7 Jun. Both Building will be procurred in FY-17. Pre-Award funding for MATOC solicitation requested 16 May. | AA41: FY17
A42: N | B42: NA | C42: Gordon | E42: TBUP Bldg 25703 | F42: 79855 | G42: SRM | H42: 16 | I42: NA | J42: Kerkhoff | K42: Thompson/ Crow | L42: 15000000 | M42: FY-17 | N42: FY-17 | X42: FY-17 | Y42: D-B MATOC SWF: In-House to update previous perpared RFP. Anticipate 1 of 3 remaining bldgs ($13M/EA) to award in FY16. Revised budget provided to Ft. Gordon on 22 Dec. Awaiting funds from DPW. Per DPW, may not receive P&D funding until Apr 2016. PM formally requested P&D to prepare RFP on 19 Apr, expected by EOM. Notified by DPW during 12 May LIR that this will be an FY-17 project. PM coordinating acquisition tool for construction. | AA42: FY17
A43: N | B43: NA | C43: Gordon | E43: Cyber COE RLB SCIF | G43: SRM / OPA | H43: 16 | I43: NA | J43: Kerkhoff | K43: Helms | L43: =10600000+730000+2400000 -> 13730000 | M43: 12/29/15 (A) | N43: 12/29/15 (A) | O43: TBD | P43: TBD | Q43: TBD | R43: TBD | S43: TBD | T43: TBD | U43: TBD | V43: TBD | W43: TBD | X43: 3/4/16 (A) | Y43: D-B Service Contract (8a Match). Awarded to Tribalmod1, JV on 4 Mar 16 in amount of $9,407,918. Pre-Con and site walk held 7 Mar 16. Ground Breaking tentatively scheduled for 13 Apr 16. Received funding for FF&E in amount of $930,922 plus S&A by MIPR dated 15 Mar 16. Option exercised by mod dated 5 May 16.
A44: N | C44: Benning | E44: Blg 3305 TBUP | G44: SRM | H44: 16 | I44: NA | J44: Reinhardt | K44: Thompson/ Crow | L44: 32498000 | M44: 4/10/15 (A) | N44: 5/15/15 (A) | X44: 5/26/16 (A) | Y44: D-B MATOC (SWF). AE RFP. 100%. Contractors holding prices until 5 Dec 15. Contractors extended pricing to 4 Apr 16. Revision extending proposal expiration to 30 Sep and raising CCL issued 5 Apr. Funds for award received 12 Apr. Responses received on 19 Apr. Awarded 26 May 16 to Whitesell-Green in amount of $32,498,000. GAO Protest by EDT under review.
A45: N | B45: NA | C45: Bragg | E45: Replace GREEN Ramp, North (Phase II), FA-80003-3P | F45: FA-80003-3P | G45: SRM | H45: 16 | I45: NA | J45: Leyva-Colon | K45: Crow / Oliver | L45: 16026182 | M45: 2015-07-29 | N45: 5/6/2016 (A) | O45: TBD | P45: TBD | Q45: TBD | R45: TBD | S45: TBD | T45: TBD | U45: TBD | V45: TBD | W45: TBD | X45: 6/30/16 (A) | Y45: D-B-B LPTA "C" Type. Design by SAS. Pre-Award funds in amount of $13,858 received by MIPR dated 26 Jan 16. Pre-Award funds in amount of $46,920 received by MIPR dated 10 Feb. PDT to finalize acquisition strategy. SSP approved 28 Apr. Construction funds in SAS. Advance Notice to Offerors issued 18 Mar. Site visit scheduled for 16 May. Proposals received 6 Jun. Completed evaluation 14 Jun. Awarded to R.C. Construction on 30 Jun in amount of $16,026,182.
A54: FY-16 LARGE SRM ROLL-UP
D55: Design in Progress | E55: Design in Progress | F55: OTHER FY-16 & Prior Under Design | L55: =L31+L32+L33+L34+L35+L36+L37+L38+L40+L41+L42 -> 130826722 | M55: 11 | N55: Contract Actions
D56: Advertised | E56: Advertised | F56: OTHER FY-16 & Prior Advertised | L56: =L39 -> 25000000 | M56: 1 | N56: Contract Actions
D57: Evaluating proposals | E57: Evaluating proposals | F57: OTHER FY-16 & Prior Proposals Rec'd & Eval in Prog | L57: 0 | M57: 0 | N57: Contract Actions
D58: Discussions in progress | E58: Discussions in progress | F58: OTHER FY-16 & Prior In Discussions | L58: 0 | M58: 0 | N58: Contract Actions
D59: Funds and Code 9 req. | E59: Funds and Code 9 req. | F59: OTHER FY-16 & Prior Awaiting funds and Code 9 | L59: 0 | M59: 0 | N59: Contract Actions
D60: Award in Progress | E60: Award in Progress | F60: OTHER FY-16 & Prior Ready To Award | L60: 0 | M60: 0 | N60: Contract Actions
D61: Reprogramming action required | E61: Reprogramming action required | F61: OTHER FY-16 & Prior Under Congressional Reprog | L61: 0 | M61: 0 | N61: Contract Actions
D62: Awarded | E62: Awarded | F62: OTHER FY-16 & Prior Awarded | L62: =L43+L44+L45 -> 62254182 | M62: 3 | N62: Contract Actions
E63: Awarded | I63: TOTAL | L63: =SUM(L55:L62) -> 218080904 | M63: =SUM(M55:M62) -> 15 | N63: Contract Actions

Sheet Projects Typed (hidden)
G2: Base
A3: BASE | B3: PROJECT NAME | C3: PN | D3: PM | E3: PA | G3: Fort Benning
A4: Benning | B4: Blg 2761 TBUP | D4: Reinhardt | E4: 22000000 | G4: Fort Bragg
A5: Benning | B5: Blg 3105 TBUP | D5: Reinhardt | E5: 33000000 | G5: Fort Gordon
A6: Benning | B6: Blg 3305 TBUP | D6: Reinhardt | E6: 32498000 | G6: Fort Stewart
A7: Benning | B7: Maneuver / Training Area Heavy Forces | C7: 87980 | D7: Grandison | E7: 2850000 | G7: Robins AFB
A8: Benning | B8: Ranger Barracks 2937, 2938, 2939 | D8: Reinhardt | E8: 10500000 | G8: Seymour Johnson AFB
A9: Bragg | B9: Renovate Pope Fire Station | C9: FA-11006-3P | D9: Leyva-Colon | E9: 5000000 | G9: Hunter AAF
A10: Bragg | B10: Renovate Volar Barracks 4445,4350, 5784, 5117, & 5122 | C10: FA-11312-9P | D10: Leyva-Colon | E10: 25000000 | G10: Fort Gillem
A11: Bragg | B11: Repair TBUP Bldg. D-3026 | C11: FA-11601-3P | D11: Leyva-Colon | E11: 5000000 | G11: Camp Merrill
A12: Bragg | B12: Replace Butner ES | C12: AM00045 | D12: Peralta | E12: 32944000
A13: Bragg | B13: Replace GREEN Ramp, North (Phase II) | C13: FA-80003-3P | D13: Leyva-Colon | E13: 16026182
A14: Gordon | B14: Administrative Building, General Purpose | C14: 89734 | D14: Cady | E14: 2300000
A15: Gordon | B15: Command and Control Facility | C15: 85811 | D15: Puhalla | E15: 90000000
A16: Gordon | B16: Cyber COE RLB SCIF | D16: Kerkhoff | E16: 13730000
A17: Gordon | B17: Cyber CoE RLB Swing Space | C17: ST-06141-6P | D17: Kerkhoff | E17: 6500000
A18: Gordon | B18: NCOA Bks HVAC Repair | C18: PN 78045/PN 78043 | D18: Cady | E18: 7000000
A19: Gordon | B19: SCIF (Cyber CoE Battle Lab) | C19: 87627 | D19: Kerkhoff | E19: 2550000
A20: Gordon | B20: TBUP Bldg 25703 | C20: 79855 | D20: Kerkhoff | E20: 15000000
A21: Gordon | B21: Winship Hall Repair, Bldg. 29718 | C21: 86038 | D21: Kerkhoff | E21: 14300000
A22: Jackson | B22: Replace Pierce Terrace ES | C22: AM00035 | D22: Peralta | E22: 26157000
A23: Robins | B23: Airfield Fence & Gates | C23: UHHZ110323W | D23: Harrell | E23: 1900000
A24: Robins | B24: DLA Renovation of Vairous Buildings Phase II | D24: Comeaux | E24: 5526722
A25: Seymour Johnson | B25: Air Traffic Control Tower/Base Operations Complex | C25: VKAG013004R5 | D25: Harrell | E25: 17100000
A26: Stewart | B26: CIDC Field Operations Building | C26: 86787 | D26: Hill | E26: 2000000
A27: Stewart | B27: MP Station | C27: 81303 | D27: Hill | E27: 2000000
A28: Stewart | B28: Support / Maintenance Warehouse | C28: 88047 | D28: Hill | E28: 3000000
A29: Stewart | B29: VFD Drives in HVAC Systems | C29: 85960 | D29: Comeaux | E29: 1600000

Sheet Project EX Input Sort (hidden)
A1: PEER | B1: Code | C1: INST | D1: ORG | E1: PROJECTNAME | F1: PN | G1: Fund | H1: YR | I1: Lock-in | J1: PM | K1: CS/KO | L1: PA | M1: RTA | N1: Adv | O1: AWARDED | P1: OBLDT | Q1: TIER | R1: LEEDSPIRIT | S1: PROJSTATUS | T1: CMR | U1: OPSTATUS | V1: PM | W1: CONSTR_PCT_COMPLETE | X1: Projected Award | Y1: DATAASOF | Z1: BCOES
A2: N | B2: 6 | C2: Benning | E2: Maneuver / Training Area Heavy Forces | F2: 87980 | G2: UMMCA | H2: 16 | J2: Grandison | K2: TBD | L2: 2850000 | M2: 2016-11-07 | N2: 2016-11-18 | X2: 2017-02-28 | Z2: Under Design
A3: N | C3: Benning | E3: Blg 2761 TBUP | G3: SRM | H3: 16 | I3: NA | J3: Reinhardt | K3: Thompson/ Crow | L3: 22000000 | M3: 2016-08-04 | N3: 2016-08-11 | X3: 2016-09-30 | Z3: BCOES Underway
A4: N | C4: Benning | E4: Blg 3105 TBUP | G4: SRM | H4: 16 | I4: NA | J4: Reinhardt | K4: Thompson/ Crow | L4: 33000000 | M4: 2016-08-05 | N4: 2016-08-10 | X4: 2016-09-16 | Z4: BCOES Underway
A5: N | C5: Benning | E5: Ranger Barracks 2937, 2938, 2939 | G5: SRM | H5: 16 | I5: NA | J5: Reinhardt | L5: 10500000 | M5: 2016-08-02 | N5: 2016-08-05 | X5: 2016-09-06 | Z5: BCOES???
A6: N | C6: Benning | E6: Ranger Barracks 2936, 2940 | G6: SRM | H6: 16 | I6: NA | J6: Reinhardt | L6: 7000000 | M6: 2016-08-02 | N6: 2016-08-05 | X6: 2016-09-06 | Z6: BCOES???
A7: N | C7: Benning | E7: Blg 3305 TBUP | G7: SRM | H7: 16 | I7: NA | J7: Reinhardt | K7: Thompson/ Crow | L7: 32498000 | M7: 4/10/15 (A) | N7: 5/15/15 (A) | X7: 5/26/16 (A)
A8: N | B8: A | C8: Bragg | E8: Water Source Heat Pumps, Cooling Tower | F8: 87500 | G8: ECIP | H8: 15 | I8: 2016-04-29 | J8: Comeaux | K8: Wampler / Arnett | L8: 1850000 | M8: 2016-08-15 | N8: 2016-08-22 | X8: 2016-09-30
A9: N | B9: 6 | C9: Bragg | E9: Replace Butner ES | F9: AM00045 | G9: DoDEA | H9: 16 | I9: 2016-08-30 | J9: Peralta | K9: North/ Crow | L9: 32944000 | M9: 2016-08-30 | N9: 2016-09-13 | X9: 2016-11-28 | Z9: BCOES Closed 22-Jul-2016.
A10: N | B10: NA | C10: Bragg | E10: Repair TBUP Bldg. D-3026 | F10: FA-11601-3P | G10: SRM | H10: 16 | I10: NA | J10: Leyva-Colon | K10: Thompson / Crow | L10: 5000000 | M10: 7/29/15 (A) | N10: 7/18/16 (A) | O10: TBD | P10: TBD | Q10: TBD | R10: TBD | S10: TBD | T10: TBD | U10: TBD | V10: TBD | W10: TBD | X10: 2016-09-16 | Z10: No BCOES???
A11: N | B11: NA | C11: Bragg | E11: Renovate Pope Fire Station | F11: FA-11006-3P | G11: SRM | H11: 16 | I11: NA | J11: Leyva-Colon | K11: Cook / Arnette | L11: 5000000 | M11: 6/30/16 (A) | N11: 2016-07-27 | O11: ???? | P11: ???? | Q11: ???? | R11: ???? | S11: ???? | T11: ???? | U11: ???? | V11: ???? | W11: ???? | X11: 2016-09-20 | Z11: BCOES???
A12: N | B12: NA | C12: Bragg | E12: Renovate Volar Barracks 4445,4350, 5784, 5117, & 5122 | F12: FA-11312-9P | G12: SRM | H12: 16 | I12: NA | J12: Leyva-Colon | K12: Oliver / Arnette | L12: 25000000 | M12: 7/29/15 (A) | N12: 7/25/16 (A) | O12: ???? | P12: ???? | Q12: ???? | R12: ???? | S12: ???? | T12: ???? | U12: ???? | V12: ???? | W12: ???? | X12: 2016-09-19 | Z12: BCOES???
A13: N | B13: NA | C13: Bragg | E13: Replace GREEN Ramp, North (Phase II), FA-80003-3P | F13: FA-80003-3P | G13: SRM | H13: 16 | I13: NA | J13: Leyva-Colon | K13: Crow / Oliver | L13: 16026182 | M13: 2015-07-29 | N13: 5/6/2016 (A) | O13: TBD | P13: TBD | Q13: TBD | R13: TBD | S13: TBD | T13: TBD | U13: TBD | V13: TBD | W13: TBD | X13: 6/30/16 (A)
A14: N | B14: A | C14: Gordon | E14: Command and Control Facility | F14: 85811 | G14: MCA | H14: 16 | I14: N/A | J14: Puhalla | K14: Page/LTC Lee | L14: 90000000 | M14: 12/31/15 (A) | N14: 2/12/16 (A) | X14: 2016-08-30 | Z14: BCOES????
A15: N | B15: 6 | C15: Gordon | E15: SCIF (Cyber CoE Battle Lab) | F15: 87627 | G15: UMMCA | H15: 16 | J15: Kerkhoff | K15: TBD | L15: 2550000 | M15: 2017-02-15 | N15: 2017-02-28 | X15: 2017-05-09 | Z15: Under Design
A16: N | B16: 6 | C16: Gordon | E16: Administrative Building, General Purpose | F16: 89734 | G16: UMMCA | H16: 16 | J16: Cady | K16: TBD | L16: 2300000 | M16: 2016-07-29 | N16: 2016-08-01 | X16: 2016-09-15 | Z16: BCOES???
A17: N | B17: NA | C17: Gordon | E17: Winship Hall Repair, Bldg. 29718 | F17: 86038 | G17: SRM | H17: 16 | I17: NA | J17: Kerkhoff | K17: Thompson / Crow | L17: 14300000 | M17: 2016-07-20 | N17: 2016-07-27 | X17: 2016-09-15 | Z17: BCOES Complete 20-Jul-2016
A18: N | B18: NA | C18: Gordon | E18: Cyber CoE RLB Swing Space | F18: ST-06141-6P | G18: OPA/SRM | H18: 16 | I18: NA | J18: Kerkhoff | L18: 6500000 | M18: 2016-07-26 | N18: 2016-08-01 | X18: 2016-09-21 | Z18: No BCOES???
A19: N | B19: NA | C19: Gordon | E19: NCOA Bks HVAC Repair | F19: PN 78045 (Bldg 24404) PN 78043 (Bldg 24407) | G19: SRM | H19: 17 | I19: NA | J19: Cady | K19: Oliver/ Crow | L19: 7000000 | M19: 2016-07-01 | N19: FY-17 | X19: FY-17 | Z19: FY17
A20: N | B20: NA | C20: Gordon | E20: TBUP Bldg 25703 | F20: 79855 | G20: SRM | H20: 16 | I20: NA | J20: Kerkhoff | K20: Thompson/ Crow | L20: 15000000 | M20: FY-17 | N20: FY-17 | X20: FY-17 | Z20: FY17
A21: N | B21: NA | C21: Gordon | E21: Cyber COE RLB SCIF | G21: SRM / OPA | H21: 16 | I21: NA | J21: Kerkhoff | K21: Helms | L21: =10600000+730000+2400000 -> 13730000 | M21: 12/29/15 (A) | N21: 12/29/15 (A) | O21: TBD | P21: TBD | Q21: TBD | R21: TBD | S21: TBD | T21: TBD | U21: TBD | V21: TBD | W21: TBD | X21: 3/4/16 (A)
A22: Y | B22: A | C22: Jackson | E22: Replace Pierce Terrace ES | F22: AM00035 | G22: DoDEA | H22: 16 | I22: 2016-08-30 | J22: Peralta | K22: Page/ Crow | L22: 26157000 | M22: 8/28/15 (A) | N22: 3/14/16 (A) | X22: 2016-12-30 | Z22: BCOES Completed 12-Jun-2016
A23: N | B23: A | C23: Maxwell | E23: Replace/Renovate Maxwell ES/MS | F23: AM00110 | G23: DoDEA | H23: 16 | I23: 2015-06-30 | J23: Lourdes | K23: SAM | L23: 32968000 | M23: 10/8/15 (A) | N23: 12/15/15 (A) | X23: 2016-12-30 | Z23: FY16 Maxwell. Who did the BCOES???
A24: N | B24: A | C24: Moody | E24: Replace Truck Fill Stand | F24: DESC1710 | G24: DLA | H24: 16 | I24: 2016-08-30 | J24: Grandison | K24: Thompson/ Crow | L24: 10900000 | M24: 12/31/15 (A) | N24: 6/15/2016 (A) | X24: 2016-08-30 | Z24: BCOES Completed 10-Feb-2016
A25: N | B25: A | C25: Robins | E25: Airfield Fence & Gates | F25: UHHZ110323W | G25: UMMCAF | H25: 16 | I25: N/A | J25: Harrell | K25: Arnett | L25: 1900000 | M25: 2/29/16 (A) | N25: 4/28/16 (A) | X25: 2016-08-31
A26: N | B26: NA | C26: Robins | E26: DLA Renovation of Vairous Buildings Phase II | F26: ??? | G26: SRM | H26: 16 | I26: NA | J26: Comeaux | K26: Thompson / Crow | L26: 5526722 | M26: 2016-07-20 | N26: 2016-07-22 | O26: ???? | P26: ???? | Q26: ???? | R26: ???? | S26: ???? | T26: ???? | U26: ???? | V26: ???? | W26: ???? | X26: 2016-08-30 | Z26: BCOES???
A27: N | B27: A | C27: Rucker | E27: Replace Rucker ES/PS | F27: AM00048 | G27: DoDEA | H27: 16 | I27: 2016-06-30 | J27: Lourdes | K27: Oliver/ Crow | L27: 46787000 | M27: 10/8/2015 (A) | N27: 12/23/2015 (A) | X27: 2016-12-30 | Z27: FY17 - Ft Rucker - No BCOES??? Who did the BCOES???
A28: N | B28: A | C28: Seymour Johnson | E28: Air Traffic Control Tower/Base Operations Complex | F28: VKAG013004R5 | G28: MCAF | H28: 16 | I28: 2016-08-30 | J28: Harrell | K28: Thompson/ Crow | L28: 17100000 | M28: 2016-08-17 | N28: 2016-08-12 | X28: 2016-09-30 | Z28: No longer in Dr. Checks. Email Traffic to 20Jul2016. Appears BCOES Complete.
A29: N | B29: A | C29: Stewart | E29: MP Station | F29: 81303 | G29: UMMCA | H29: 14 | I29: N/A | J29: Hill | K29: Wampler / Arnett | L29: 2000000 | M29: 6/6/2016 (A) | N29: 6/30/16 (A) | X29: 2016-08-26 | Z29: BCOES approved 6 Jun 16
A30: Y | B30: A | C30: Stewart | E30: SOF Company Ops Facility | F30: 57442 | G30: SOF | H30: 15 | I30: 2016-09-15 | J30: Hill | K30: Oliver / Crow | L30: 7692000 | M30: 2/26/16 (A) | N30: 7/22/16 (A) | X30: 2016-09-30
A31: N | B31: A | C31: Stewart | E31: CIDC Field Operations Building | F31: 86787 | G31: UMMCA | H31: 15 | I31: N/A | J31: Hill | K31: North / Crow | L31: 2000000 | M31: 6/30/16 (A) | N31: 2016-07-26 | X31: 2016-09-21 | Z31: Conditional BCOES signed 30 Jun
A32: N | B32: 6 | C32: Stewart | E32: Support / Maintenance Warehouse | F32: 88047 | G32: UMMCA | H32: 16 | J32: Hill | K32: TBD | L32: 3000000 | M32: 2017-03-15 | N32: 2017-03-29 | X32: 2017-06-09 | Z32: Under Design
A33: N | B33: A | C33: Stewart | E33: VFD Drives in HVAC Systems | F33: 85960 | G33: ECIP | H33: 16 | I33: 2016-07-30 | J33: Comeaux | K33: Arnett | L33: 1600000 | M33: 12/31/15 (A) | N33: 5/12/16 (A) | X33: 7/15/16 (A) | Z33: No BCOES done.

Sheet Spare (hidden)
G2: Base
A3: BASE | B3: PROJECT NAME | C3: PN | D3: PM | E3: PA | G3: Fort Benning
A4: Stewart | B4: MP Station | C4: 81303 | D4: Hill | E4: 2000000 | G4: Fort Bragg
A5: Stewart | B5: CIDC Field Operations Building | C5: 86787 | D5: Hill | E5: 2000000 | G5: Fort Gordon
A6: Gordon | B6: Command and Control Facility | C6: 85811 | D6: Puhalla | E6: 90000000 | G6: Fort Stewart
A7: Seymour Johnson | B7: Air Traffic Control Tower/Base Operations Complex | C7: VKAG013004R5 | D7: Harrell | E7: 17100000 | G7: Robins AFB
A8: Robins | B8: Airfield Fence & Gates | C8: UHHZ110323W | D8: Harrell | E8: 1900000 | G8: Seymour Johnson AFB
A9: Bragg | B9: Replace Butner ES | C9: AM00045 | D9: Peralta | E9: 32944000 | G9: Hunter AAF
A10: Jackson | B10: Replace Pierce Terrace ES | C10: AM00035 | D10: Peralta | E10: 26157000 | G10: Fort Gillem
A11: Gordon | B11: SCIF (Cyber CoE Battle Lab) | C11: 87627 | D11: Kerkhoff | E11: 2550000 | G11: Camp Merrill
A12: Benning | B12: Maneuver / Training Area Heavy Forces | C12: 87980 | D12: Grandison | E12: 2850000
A13: Stewart | B13: Support / Maintenance Warehouse | C13: 88047 | D13: Hill | E13: 3000000
A14: Gordon | B14: Administrative Building, General Purpose | C14: 89734 | D14: Cady | E14: 2300000
A15: Stewart | B15: VFD Drives in HVAC Systems | C15: 85960 | D15: Comeaux | E15: 1600000
A16: Benning | B16: Blg 2761 TBUP | D16: Reinhardt | E16: 22000000
A17: Benning | B17: Blg 3105 TBUP | D17: Reinhardt | E17: 33000000
A18: Benning | B18: Ranger Barracks 2937, 2938, 2939 | D18: Reinhardt | E18: 10500000
A19: Gordon | B19: Winship Hall Repair, Bldg. 29718 | C19: 86038 | D19: Kerkhoff | E19: 14300000
A20: Gordon | B20: Cyber CoE RLB Swing Space | C20: ST-06141-6P | D20: Kerkhoff | E20: 6500000
A21: Bragg | B21: Repair TBUP Bldg. D-3026 | C21: FA-11601-3P | D21: Leyva-Colon | E21: 5000000
A22: Bragg | B22: Renovate Pope Fire Station | C22: FA-11006-3P | D22: Leyva-Colon | E22: 5000000
A23: Bragg | B23: Renovate Volar Barracks 4445,4350, 5784, 5117, & 5122 | C23: FA-11312-9P | D23: Leyva-Colon | E23: 25000000
A24: Robins | B24: DLA Renovation of Vairous Buildings Phase II | D24: Comeaux | E24: 5526722
A25: Gordon | B25: NCOA Bks HVAC Repair | C25: PN 78045/PN 78043 | D25: Cady | E25: 7000000
A26: Gordon | B26: TBUP Bldg 25703 | C26: 79855 | D26: Kerkhoff | E26: 15000000
A27: Gordon | B27: Cyber COE RLB SCIF | D27: Kerkhoff | E27: 13730000
A28: Benning | B28: Blg 3305 TBUP | D28: Reinhardt | E28: 32498000
A29: Bragg | B29: Replace GREEN Ramp, North (Phase II) | C29: FA-80003-3P | D29: Leyva-Colon | E29: 16026182
